Workbook

Sheet SETUP (hidden)
Q1: 1 | R1: 1
B4: Button text | C4: Unlock Function | E4: Date of function in use | G4: By User | I4: Current Status
B6: =IF(rng_status_edit="Locked","Edit Unlocked"," Edit Locked") -> Edit Locked | C6: Change logo
C9: Password | E9: Windpower

Sheet A) Cover Page
C37: Advanced Product Quality Planning Analysis Tool for the Wind Industry
C38: ='A) Cover Page 2'!C26 -> Version 1.3 - March 2024
C40: For more information, please go to: APQP4Wind.org

Sheet A) Cover Page 2
C2: APQP4Wind
C3: Lysbrohøjen 24
C4: 8600 Silkeborg
C5: Denmark
C7: Mail: contact@apqp4wind.org
C8: Website: www.apqp4wind.org
C9: LinkedIn: APQP4Wind
C11: Text and data:
C12: Manual and Toolbox developed by the APQP4Wind organization
C14: Layout and print:
C15: Digitalprint - PrimaPrint
C17: Photo credit, front page:
C18: Offshore Windpark Burbo Bank Extension
C19: Copyright: © Ørsted A/S
C21: Copyright:
C22: © APQP4Wind, all rights reserved
C24: Version:
C25: Advanced Product Quality Planning Manual for the Wind Industry
C26: Version 1.3 - March 2024
C28: Contributors:
C29: Bureau Veritas Certification
C30: DNV
C31: GE Vernova
C32: Goldwind
C33: GRI Renewable Industries
C34: KK Wind Solutions
C35: LM Wind Power
C36: Siemens Gamesa Renewable Energy
C37: TÜV Rheinland Greater China
C38: Vattenfall
C39: Vejby
C40: Vestas Wind Systems
C41: ZF Wind Power
C42: Ørsted

Sheet B) FUNCTIONS
Q1: 1 | R1: 1
C4: Edit height and wide of rows and columns
C6: Current status | E6: =IF(rng_status_edit="Unlocked","Unlocked","Locked") -> Locked

Sheet 1) MSA Type 1
O4: =UPPER("Sheet specific INFORMATION") -> SHEET SPECIFIC INFORMATION
B7: Inst
B8: Inst
B9: Inst
B10: Inst
B11: Inst
B12: Inst
B13: Inst
B14: Inst
B15: Inst
B16: Inst
B17: Inst
B18: Inst
B19: Inst
B20: Inst
B21: Inst
B22: Inst
B23: Inst
B24: Inst
B25: Inst
B26: Inst
B27: Inst
B28: Inst
B29: Inst
B30: Inst
B31: Inst
B32: Inst
B33: Inst
B34: Inst
B35: Inst
B36: Inst
B37: Inst
B38: Inst
B39: Inst
B40: Inst
B41: Inst
O43: MSA Variable Type 1
O45: Ref. No. | T45: Gauge Name
O47: Reference Value | T47: Gauge Number
O49: Specification Number | T49: Gauge Type
O51: Characteristic Name | T51: Date Performed
O53: Characteristic Type
O55: Resolution | T55: Approved Date
O57: Specifications | T57: Approved By ID
O59: - LSL | T59: Approved Name
O61: - USL | T61: Approved Function
S63: =IF(AND(Q59>Q61,Q61<>""),"LSL is > USL","") ->  | T63: Approved Company
E65: STDV | F65: =R87 ->  | O65: No. | P65: Data | Q65: No. | R65: Data | S65: No. | T65: Data | U65: No. | V65: Data
B66: msa | C66: No | D66: data | E66: avarage | F66: UCL | G66: LCL | H66: Column1 | I66: No. | J66: range | K66: range - | L66: UCL2 | M66: LCL3 | O66: 1 | Q66: 16 | S66: 31 | U66: 46
B67: msa | C67: 1 | D67: =IF('1) MSA Type 1'!P66<>"",'1) MSA Type 1'!P66,"") ->  | E67: =IF(D67<>"",AVERAGE(D67:D126),"") ->  | F67: =+E67+(3*$F$65) ->  | G67: =+E67-(3*$F$65) ->  | I67: =C67 -> 1 | K67: =AVERAGE(J68:J126) -> 0 | L67: =+K67+(3*_xlfn.STDEV.P(J68:J126)) -> 0 | M67: =IF(K67-(3*_xlfn.STDEV.P(J68:J126))<0,0,(K67-(3*_xlfn.STDEV.P(J68:J126)))) -> 0 | O67: 2 | Q67: 17 | S67: 32 | U67: 47
B68: msa | C68: =C67+1 -> 2 | D68: =IF('1) MSA Type 1'!P67<>"",'1) MSA Type 1'!P67,"") ->  | E68: =E67 ->  | I68: 2 | J68: =IFERROR(ABS(D67-D68),0) -> 0 | K68: =K67 -> 0 | L68: =L67 -> 0 | M68: =M67 -> 0 | O68: 3 | Q68: 18 | S68: 33 | U68: 48
B69: msa | C69: 3 | D69: =IF('1) MSA Type 1'!P68<>"",'1) MSA Type 1'!P68,"") ->  | I69: 3 | J69: 0 | K69: 0 | L69: 0 | M69: 0 | O69: 4 | Q69: 19 | S69: 34 | U69: 49
B70: msa | C70: 4 | D70: =IF('1) MSA Type 1'!P69<>"",'1) MSA Type 1'!P69,"") ->  | I70: 4 | J70: 0 | K70: 0 | L70: 0 | M70: 0 | O70: 5 | Q70: 20 | S70: 35 | U70: 50
B71: msa | C71: 5 | D71: =IF('1) MSA Type 1'!P70<>"",'1) MSA Type 1'!P70,"") ->  | I71: 5 | J71: 0 | K71: 0 | L71: 0 | M71: 0 | O71: 6 | Q71: 21 | S71: 36 | U71: 51
B72: msa | C72: 6 | D72: =IF('1) MSA Type 1'!P71<>"",'1) MSA Type 1'!P71,"") ->  | I72: 6 | J72: 0 | K72: 0 | L72: 0 | M72: 0 | O72: 7 | Q72: 22 | S72: 37 | U72: 52
B73: msa | C73: 7 | D73: =IF('1) MSA Type 1'!P72<>"",'1) MSA Type 1'!P72,"") ->  | I73: 7 | J73: 0 | K73: 0 | L73: 0 | M73: 0 | O73: 8 | Q73: 23 | S73: 38 | U73: 53
B74: msa | C74: 8 | D74: =IF('1) MSA Type 1'!P73<>"",'1) MSA Type 1'!P73,"") ->  | I74: 8 | J74: 0 | K74: 0 | L74: 0 | M74: 0 | O74: 9 | Q74: 24 | S74: 39 | U74: 54
B75: msa | C75: 9 | D75: =IF('1) MSA Type 1'!P74<>"",'1) MSA Type 1'!P74,"") ->  | I75: 9 | J75: 0 | K75: 0 | L75: 0 | M75: 0 | O75: 10 | Q75: 25 | S75: 40 | U75: 55
B76: msa | C76: 10 | D76: =IF('1) MSA Type 1'!P75<>"",'1) MSA Type 1'!P75,"") ->  | I76: 10 | J76: 0 | K76: 0 | L76: 0 | M76: 0 | O76: 11 | Q76: 26 | S76: 41 | U76: 56
B77: msa | C77: 11 | D77: =IF('1) MSA Type 1'!P76<>"",'1) MSA Type 1'!P76,"") ->  | I77: 11 | J77: 0 | K77: 0 | L77: 0 | M77: 0 | O77: 12 | Q77: 27 | S77: 42 | U77: 57
B78: msa | C78: 12 | D78: =IF('1) MSA Type 1'!P77<>"",'1) MSA Type 1'!P77,"") ->  | I78: 12 | J78: 0 | K78: 0 | L78: 0 | M78: 0 | O78: 13 | Q78: 28 | S78: 43 | U78: 58
B79: msa | C79: 13 | D79: =IF('1) MSA Type 1'!P78<>"",'1) MSA Type 1'!P78,"") ->  | I79: 13 | J79: 0 | K79: 0 | L79: 0 | M79: 0 | O79: 14 | Q79: 29 | S79: 44 | U79: 59
B80: msa | C80: 14 | D80: =IF('1) MSA Type 1'!P79<>"",'1) MSA Type 1'!P79,"") ->  | I80: 14 | J80: 0 | K80: 0 | L80: 0 | M80: 0 | O80: 15 | Q80: 30 | S80: 45 | U80: 60
C81: 15 | D81: =IF('1) MSA Type 1'!P80<>"",'1) MSA Type 1'!P80,"") ->  | I81: 15 | J81: 0 | K81: 0 | L81: 0 | M81: 0
C82: 16 | D82: =IF('1) MSA Type 1'!R66<>"",'1) MSA Type 1'!R66,"") ->  | I82: 16 | J82: 0 | K82: 0 | L82: 0 | M82: 0
C83: 17 | D83: =IF('1) MSA Type 1'!R67<>"",'1) MSA Type 1'!R67,"") ->  | I83: 17 | J83: 0 | K83: 0 | L83: 0 | M83: 0 | O83: Basic Statistics | T83: Bias
C84: 18 | D84: =IF('1) MSA Type 1'!R68<>"",'1) MSA Type 1'!R68,"") ->  | I84: 18 | J84: 0 | K84: 0 | L84: 0 | M84: 0 | O84: Reference value | R84: =IF(Q47<>"",Q47,"") ->  | T84: Bias: | U84: =IF(AND(R86<>"",R84<>""),R86-R84,"") -> 
C85: 19 | D85: =IF('1) MSA Type 1'!R69<>"",'1) MSA Type 1'!R69,"") ->  | I85: 19 | J85: 0 | K85: 0 | L85: 0 | M85: 0 | O85: Measurements | R85: =IF(P66<>"",COUNT(P66:P80,R66:R80,T66:T80,V66:V80),"") ->  | T85: T: | U85: =IF(AND(R84<>"",R86<>"",R87<>""),(R86-R84)*SQRT(ABS(R85))/(R87),"") -> 
C86: 20 | D86: =IF('1) MSA Type 1'!R70<>"",'1) MSA Type 1'!R70,"") ->  | I86: 20 | J86: 0 | K86: 0 | L86: 0 | M86: 0 | O86: Average: | R86: =IF(P66<>"",AVERAGE(P66:P80,R66:R80,T66:T80,V66:V80),"") ->  | T86: P-value: | U86: =IF(AND(U85<>"",R85>1),TDIST(ABS(U85),R85-1,2),"") -> 
C87: 21 | D87: =IF('1) MSA Type 1'!R71<>"",'1) MSA Type 1'!R71,"") ->  | I87: 21 | J87: 0 | K87: 0 | L87: 0 | M87: 0 | O87: Standard dev. (STDEV.S) | R87: =IF(AND(R85<>"",R85>1),_xlfn.STDEV.S(P66:P80,R66:R80,T66:T80,V66:V80),"") -> 
C88: 22 | D88: =IF('1) MSA Type 1'!R72<>"",'1) MSA Type 1'!R72,"") ->  | I88: 22 | J88: 0 | K88: 0 | L88: 0 | M88: 0
C89: 23 | D89: =IF('1) MSA Type 1'!R73<>"",'1) MSA Type 1'!R73,"") ->  | I89: 23 | J89: 0 | K89: 0 | L89: 0 | M89: 0 | O89: Tolerance: | R89: =IF(AND(Q59<>"",Q61<>""),Q61-Q59,"") -> 
C90: 24 | D90: =IF('1) MSA Type 1'!R74<>"",'1) MSA Type 1'!R74,"") ->  | I90: 24 | J90: 0 | K90: 0 | L90: 0 | M90: 0
C91: 25 | D91: =IF('1) MSA Type 1'!R75<>"",'1) MSA Type 1'!R75,"") ->  | I91: 25 | J91: 0 | K91: 0 | L91: 0 | M91: 0 | O91: Gauge R&R result
C92: 26 | D92: =IF('1) MSA Type 1'!R76<>"",'1) MSA Type 1'!R76,"") ->  | I92: 26 | J92: 0 | K92: 0 | L92: 0 | M92: 0 | O92: %VAR (Repeatability) | R92: =IF(AND(R87<>"",R89<>""),R87*6/R89,"") ->  | S92: =IF(R93<>"",IF(R93<0.1,"MSA OK",IF(R93<0.15,"Gauge may be OK","Gauge needs improvement")),"") -> 
C93: 27 | D93: =IF('1) MSA Type 1'!R77<>"",'1) MSA Type 1'!R77,"") ->  | I93: 27 | J93: 0 | K93: 0 | L93: 0 | M93: 0 | O93: % VAR (Repeatability & Bias) | R93: =IF(AND(R87<>"",R89<>""),(R87*6+2*ABS(R84-R86))/R89,"") ->  | S93: =IF(COUNTA(P66:P80,R66:R80,T66:T80,V66:V80)<30,"Less than 30 trials, the statistical uncertainty decreases with increased number of trials","") -> Less than 30 trials, the statistical uncertainty decreases with increased number of trials
C94: 28 | D94: =IF('1) MSA Type 1'!R78<>"",'1) MSA Type 1'!R78,"") ->  | I94: 28 | J94: 0 | K94: 0 | L94: 0 | M94: 0
C95: 29 | D95: =IF('1) MSA Type 1'!R79<>"",'1) MSA Type 1'!R79,"") ->  | I95: 29 | J95: 0 | K95: 0 | L95: 0 | M95: 0
C96: 30 | D96: =IF('1) MSA Type 1'!R80<>"",'1) MSA Type 1'!R80,"") ->  | I96: 30 | J96: 0 | K96: 0 | L96: 0 | M96: 0 | O96: Capability results
C97: 31 | D97: =IF('1) MSA Type 1'!T66<>"",'1) MSA Type 1'!T66,"") ->  | I97: 31 | J97: 0 | K97: 0 | L97: 0 | M97: 0 | P97: Cp | Q97: =IFERROR(R89/(6*R87),"") -> 
C98: 32 | D98: =IF('1) MSA Type 1'!T67<>"",'1) MSA Type 1'!T67,"") ->  | I98: 32 | J98: 0 | K98: 0 | L98: 0 | M98: 0 | P98: Cpk | Q98: =IF(AND(Q99="",Q100=""),"",MIN(Q99,Q100)) -> 
C99: 33 | D99: =IF('1) MSA Type 1'!T68<>"",'1) MSA Type 1'!T68,"") ->  | F99: =+E99+(3*$F$65) ->  | G99: =+E99-(3*$F$65) ->  | I99: =C99 -> 33 | J99: 0 | K99: 0 | L99: 0 | M99: 0 | P99: Cpl | Q99: =IFERROR((R86-Q59)/(3*R87),"") -> 
C100: =C99+1 -> 34 | D100: =IF('1) MSA Type 1'!T69<>"",'1) MSA Type 1'!T69,"") ->  | E100: =E99 ->  | I100: 34 | J100: =IFERROR(ABS(D99-D100),0) -> 0 | K100: =K99 -> 0 | L100: =L99 -> 0 | M100: =M99 -> 0 | P100: Cpu | Q100: =IFERROR((Q61-R86)/(3*R87),"") -> 
C101: 35 | D101: =IF('1) MSA Type 1'!T70<>"",'1) MSA Type 1'!T70,"") ->  | I101: 35 | J101: 0 | K101: 0 | L101: 0 | M101: 0
C102: 36 | D102: =IF('1) MSA Type 1'!T71<>"",'1) MSA Type 1'!T71,"") ->  | I102: 36 | J102: 0 | K102: 0 | L102: 0 | M102: 0
C103: 37 | D103: =IF('1) MSA Type 1'!T72<>"",'1) MSA Type 1'!T72,"") ->  | I103: 37 | J103: 0 | K103: 0 | L103: 0 | M103: 0
C104: 38 | D104: =IF('1) MSA Type 1'!T73<>"",'1) MSA Type 1'!T73,"") ->  | I104: 38 | J104: 0 | K104: 0 | L104: 0 | M104: 0
C105: 39 | D105: =IF('1) MSA Type 1'!T74<>"",'1) MSA Type 1'!T74,"") ->  | I105: 39 | J105: 0 | K105: 0 | L105: 0 | M105: 0
C106: 40 | D106: =IF('1) MSA Type 1'!T75<>"",'1) MSA Type 1'!T75,"") ->  | I106: 40 | J106: 0 | K106: 0 | L106: 0 | M106: 0
C107: 41 | D107: =IF('1) MSA Type 1'!T76<>"",'1) MSA Type 1'!T76,"") ->  | I107: 41 | J107: 0 | K107: 0 | L107: 0 | M107: 0
C108: 42 | D108: =IF('1) MSA Type 1'!T77<>"",'1) MSA Type 1'!T77,"") ->  | I108: 42 | J108: 0 | K108: 0 | L108: 0 | M108: 0
C109: 43 | D109: =IF('1) MSA Type 1'!T78<>"",'1) MSA Type 1'!T78,"") ->  | I109: 43 | J109: 0 | K109: 0 | L109: 0 | M109: 0
C110: 44 | D110: =IF('1) MSA Type 1'!T79<>"",'1) MSA Type 1'!T79,"") ->  | I110: 44 | J110: 0 | K110: 0 | L110: 0 | M110: 0
C111: 45 | D111: =IF('1) MSA Type 1'!T80<>"",'1) MSA Type 1'!T80,"") ->  | I111: 45 | J111: 0 | K111: 0 | L111: 0 | M111: 0
C112: 46 | D112: =IF('1) MSA Type 1'!V66<>"",'1) MSA Type 1'!V66,"") ->  | I112: 46 | J112: 0 | K112: 0 | L112: 0 | M112: 0
C113: 47 | D113: =IF('1) MSA Type 1'!V67<>"",'1) MSA Type 1'!V67,"") ->  | I113: 47 | J113: 0 | K113: 0 | L113: 0 | M113: 0
C114: 48 | D114: =IF('1) MSA Type 1'!V68<>"",'1) MSA Type 1'!V68,"") ->  | I114: 48 | J114: 0 | K114: 0 | L114: 0 | M114: 0
C115: 49 | D115: =IF('1) MSA Type 1'!V69<>"",'1) MSA Type 1'!V69,"") ->  | I115: 49 | J115: 0 | K115: 0 | L115: 0 | M115: 0
C116: 50 | D116: =IF('1) MSA Type 1'!V70<>"",'1) MSA Type 1'!V70,"") ->  | I116: 50 | J116: 0 | K116: 0 | L116: 0 | M116: 0
C117: 51 | D117: =IF('1) MSA Type 1'!V71<>"",'1) MSA Type 1'!V71,"") ->  | I117: 51 | J117: 0 | K117: 0 | L117: 0 | M117: 0
C118: 52 | D118: =IF('1) MSA Type 1'!V72<>"",'1) MSA Type 1'!V72,"") ->  | I118: 52 | J118: 0 | K118: 0 | L118: 0 | M118: 0
C119: 53 | D119: =IF('1) MSA Type 1'!V73<>"",'1) MSA Type 1'!V73,"") ->  | I119: 53 | J119: 0 | K119: 0 | L119: 0 | M119: 0
C120: 54 | D120: =IF('1) MSA Type 1'!V74<>"",'1) MSA Type 1'!V74,"") ->  | I120: 54 | J120: 0 | K120: 0 | L120: 0 | M120: 0
C121: 55 | D121: =IF('1) MSA Type 1'!V75<>"",'1) MSA Type 1'!V75,"") ->  | I121: 55 | J121: 0 | K121: 0 | L121: 0 | M121: 0
C122: 56 | D122: =IF('1) MSA Type 1'!V76<>"",'1) MSA Type 1'!V76,"") ->  | I122: 56 | J122: 0 | K122: 0 | L122: 0 | M122: 0
C123: 57 | D123: =IF('1) MSA Type 1'!V77<>"",'1) MSA Type 1'!V77,"") ->  | I123: 57 | J123: 0 | K123: 0 | L123: 0 | M123: 0
C124: 58 | D124: =IF('1) MSA Type 1'!V78<>"",'1) MSA Type 1'!V78,"") ->  | I124: 58 | J124: 0 | K124: 0 | L124: 0 | M124: 0
C125: 59 | D125: =IF('1) MSA Type 1'!V79<>"",'1) MSA Type 1'!V79,"") ->  | I125: 59 | J125: 0 | K125: 0 | L125: 0 | M125: 0
C126: 60 | D126: =IF('1) MSA Type 1'!V80<>"",'1) MSA Type 1'!V80,"") ->  | I126: 60 | J126: 0 | K126: 0 | L126: 0 | M126: 0

Sheet 2) MSA Type 2 (ANOVA)
L4: =UPPER("Sheet specific INFORMATION") -> SHEET SPECIFIC INFORMATION
B7: Inst
B8: Inst
B9: Inst
B10: Inst
B11: Inst
B12: Inst
B13: Inst
B14: Inst
B15: Inst
B16: Inst
B17: Inst
B18: Inst
B19: Inst
B20: Inst
B21: Inst
B22: Inst
B23: Inst
B24: Inst
B25: Inst
B26: Inst
B27: Inst
B28: Inst
B29: Inst
B30: Inst
B31: Inst
B32: Inst
L33: MSA Variable Type 2
L35: Ref. No. | S35: Gauge Name
L37: Reference Value | S37: Date Performed
L39: Specification Number | S39: Gauge Name
L41: Characteristic Name | S41: Gauge Number
L43: Characteristic Type | S43: Gauge Type
L45: TPS No. | T45: Gauge Name
L47: Known sigma | T47: Gauge Number
L49: - LSL | S49: Appraiser A | T49: Gauge Type
L51: - USL | S51: Appraiser B
L53: Resolution | S53: Appraiser C
L55: No. of Trials | P55: =IF(N70<>"",COUNT(N70:N72),"") ->  | S55: Approved Date
L57: No. of Parts | P57: =IF(N70<>"",COUNT(N70:W70),"") ->  | S57: Approved By ID
L59: No. of Appraisers | P59: =IF(N70<>"",COUNT(N70,N75,N80),"") ->  | S59: Approved Name
S61: Approved Function
L63: Tolerance | P63: =P51-P49 -> 0 | S63: Approved Company
L65: Level of significance
L68: Apprai ser | M68: Trial | N68: Part | X68: Average | Z68: Sum app | AB68: Calculations
N69: 1 | O69: 2 | P69: 3 | Q69: 4 | R69: 5 | S69: 6 | T69: 7 | U69: 8 | V69: 9 | W69: 10 | AB69: SST | AC69: =IFERROR(SUMSQ(N70:W72)+SUMSQ(N75:W77)+SUMSQ(N80:W82),"") -> 0
L70: Appariser A | M70: 1 | Y70: =IF(N70<>"",AVERAGE(N70:W70),"") ->  | AB70: P1-X | AC70: =IFERROR(SUMSQ(N89:W91)/COUNT(N70:N72),"") -> 
M71: 2 | AB71: P2-X rks | AC71: =IFERROR(SUMSQ(N87:W87)/(COUNT(N70:N82)-4),"") -> 0
M72: 3 | AB72: P2*-X ss | AC72: =IFERROR(SUMSQ(Z73:Z83)/IF(N70<>"",COUNT(N70:W72),""),"") -> 
M73: Avg. | N73: =IF(N70<>"",SUM(N70:N72)/COUNT(N70:N72),"") ->  | X73: xa= | Z73: =SUM(N70:W72) -> 0 | AB73: P3X | AC73: =IFERROR(Y87*Y87/IF(N70<>"",P59*(COUNT(N70:W72)),""),"") -> 
M74: R | N74: =IF(N70<>"",MAX(N70:N72)-MIN(N70:N72),"") ->  | X74: ra= | AB74: P3/2 X | AC74: =IFERROR(AC71+AC72-AC73,"") -> 
L75: Appariser B | M75: 1 | AB75: Anova Table
M76: 2 | AB76: Source | AD76: DF | AE76: SS | AF76: MS | AG76: F | AH76: P-value | AI76: Significant
M77: 3 | AB77: Appraiser | AD77: =IFERROR(P59-1,"") ->  | AE77: =IFERROR(AC74-AC71,"") ->  | AF77: =IFERROR(AE77/AD77,"") ->  | AG77: =IFERROR(AF77/AF80,"") ->  | AH77: =IFERROR(FDIST(AG77,AD77,AD80),"") ->  | AI77: =IF(AH77<P65,"*"," ") -> 
M78: Avg. | N78: =IF(N75<>"",SUM(N75:N77)/COUNT(N75:N77),"") ->  | X78: xb= | Z78: =SUM(N75:W77) -> 0 | AB78: Parts | AD78: =IFERROR(P57-1,"") ->  | AE78: =IFERROR(AC74-AC72,"") ->  | AF78: =IFERROR(AE78/AD78,"") ->  | AG78: =IFERROR(AF78/AF80,"") ->  | AH78: =IFERROR(FDIST(AG78,AD78,AD80),"") ->  | AI78: =IF(AH78<P65,"*"," ") -> 
M79: R | N79: =IF(N75<>"",MAX(N75:N77)-MIN(N75:N77),"") ->  | X79: rb= | AB79: Appraiser by Part | AD79: =IFERROR(AD77*AD78,"") ->  | AE79: =IFERROR(AC70-AC74,"") ->  | AF79: =IFERROR(AE79/AD79,"") ->  | AG79: =IFERROR(AF79/AF80,"") ->  | AH79: =IFERROR(FDIST(AG79,AD79,AD80),"") ->  | AI79: =IF(AH79<P65,"*"," ") -> 
L80: Appariser C | M80: 1 | AB80: Equipment | AD80: =IFERROR(P59*P57*(P55-1),"") ->  | AE80: =IFERROR(AC69-AC70,"") ->  | AF80: =IFERROR(AE80/AD80,"") -> 
M81: 2 | AB81: Total | AD81: =IFERROR(SUM(AD77:AD80),"") -> 0 | AE81: =IFERROR(AC69-AC73,"") ->  | AI81: * effect is significant
M82: 3 | AB82: checksum | AE82: =IFERROR(SUM(AE77:AE80),"") -> 0 | AI82: MS pool | AJ82: =IFERROR((AE79+AE80)/(AD79+AD80),"") -> 
M83: Avg. | N83: =IF(N80<>"",SUM(N80:N82)/COUNT(N80:N82),"") ->  | X83: xc= | Y83: =IF(N83<>"",AVERAGE(N83:W83),0) -> 0 | Z83: =SUM(N80:W82) -> 0 | AB83: Anova Report | AC83: Standard Deviation (s) | AE83: % Total Variation | AF83: % Contribution
M84: R | N84: =IF(N80<>"",MAX(N80:N82)-MIN(N80:N82),"") ->  | X84: rc= | Y84: =IF(N84<>"",AVERAGE(N84:W84),0) -> 0
L85: Part | X85: X= | Y85: =IF(N70<>"",AVERAGE(N86:W86),) -> 0 | AB85: Repeatability (EV) | AD85: =IFERROR(SQRT((AE79+AE80)/(AD79+AD80)),"") ->  | AE85: =IFERROR(100*AD85/AD90,"") ->  | AF85: =IFERROR(AE85*AE85/100,"") -> 
L86: Average | N86: =IF(N73<>"",SUM(N73,N78,N83)/COUNT(N73,N78,N83),"") ->  | X86: Rp= | Y86: =IF(N70<>"",MAX(N86:W86)-MIN(N86:W86),0) -> 0 | AB86: Reproducibility (AV) | AD86: =IFERROR(IF(AF77-AJ82<0,0,SQRT((AF77-AJ82)/(P59*P57))),"") ->  | AE86: =IFERROR(100*AD86/AD90,"") -> 
L87: Sum part | N87: =SUM(N70:N72)+SUM(N75:N77)+SUM(N80:N82) -> 0 | O87: 0 | P87: 0 | Q87: 0 | R87: 0 | S87: 0 | T87: 0 | U87: 0 | V87: 0 | W87: 0 | Y87: =SUM(N87:W87) -> 0 | AB87: Appraiser by Part (INT) | AD87: =IFERROR(IF(AF79-AF80<0,0,SQRT((AF79-AF80)/(AD79+AD77))),"") ->  | AE87: =IFERROR(100*AD87/AD90,"") -> 
L88: Sum table | AB88: GRR | AD88: =IFERROR(SQRT(AD85*AD85+AD86*AD86),"") ->  | AE88: =IFERROR(100*AD88/AD90,"") -> 
M89: A | N89: =SUM(N70:N72) -> 0 | O89: 0 | P89: 0 | Q89: 0 | R89: 0 | S89: 0 | T89: 0 | U89: 0 | V89: 0 | W89: 0 | AB89: Part-to-Part (PV) | AD89: =IFERROR(IF(AF78-AJ82<0,0,SQRT((AF78-AJ82)/(P59*P55))),"") ->  | AE89: =IFERROR(100*AD89/AD90,"") -> 
M90: B | N90: =SUM(N75:N77) -> 0 | O90: 0 | P90: 0 | Q90: 0 | R90: 0 | S90: 0 | T90: 0 | U90: 0 | V90: 0 | W90: 0 | AB90: Total variation | AD90: =IFERROR(SQRT(AD88*AD88+AD89*AD89),"") ->  | AE90: =IFERROR(100*AD90/AD90,"") -> 
M91: C | N91: =SUM(N80:N82) -> 0 | O91: 0 | P91: 0 | Q91: 0 | R91: 0 | S91: 0 | T91: 0 | U91: 0 | V91: 0 | W91: 0
S92: =IF(R93<>"",IF(R93<0.1,"MSA OK",IF(R93<0.15,"Gauge may be OK","Gauge needs improvement")),"") ->  | AB92: =IF(N70<>"",IF(P57<5,"Less than 5 parts, the statistical uncertainty decreases with increased number of parts",""),"") -> 
AB93: =IF(N70<>"",IF(P55*P59<9,"Less than 3 appraisers and / or 3 repetitions, the statistical uncertainty decreases with increased number of trials",""),"") -> 
L95: Measurement Unit Analysis | S95: % GRR to Total variation | Z95: % GRR to Tolerance | AF95: % GRR to Known sigma
L97: Repeatability - Equipment Variation (EV) | Q97: =+AD85 ->  | S97: % Equipment Variation (%EV) | X97: =IFERROR(Q97/Q107,"") ->  | Z97: % Equipment Variation (%EV) | AD97: =IF(AD85<>"",AD85*6/(P51-P49),"") ->  | AF97: % Equipment Variation (%EV) | AJ97: =IF(AD85<>"",AD85/P47) -> FALSE
L99: Reproducibility - Appraiser variation (AV) | Q99: =+AD86 ->  | S99: % Appraiser Variation (%AV) | X99: =IFERROR(Q99/Q107,"") ->  | Z99: % Appraiser Variation (%AV) | AD99: =IF(AD86<>"",AD86*6/(P51-P49),"") ->  | AF99: % Appraiser Variation (%AV) | AJ99: =IF(AD86<>"",AD86/P47) -> FALSE
L101: Appraiser by Part (INT) | Q101: =+AD87 ->  | S101: % Appraiser by Part (INT) | X101: =IFERROR(Q101/Q107,"") ->  | Z101: % Appraiser by Part (INT) | AD101: =IF(AD87<>"",AD87*6/(P51-P49),"") ->  | AF101: % Appraiser by Part (INT) | AJ101: =IF(AD87<>"",AD87/P47) -> FALSE
L103: Gauge R & R | Q103: =+AD88 ->  | S103: % Gauge R & R Variation (%GRR) | X103: =IFERROR(Q103/Q107,"") ->  | Z103: % Gauge R & R Variation (%GRR) | AD103: =IF(AD88<>"",AD88*6/(P51-P49),"") ->  | AF103: % Gauge R & R Variation (%GRR) | AJ103: =IF(AD88<>"",AD88/P47) -> FALSE
L105: Part-to-Part (PV) | Q105: =+AD89 ->  | S105: % Part-to-Part (PV) | X105: =IFERROR(Q105/Q107,"") ->  | Z105: % Part-to-Part (PV) | AD105: =IF(AD89<>"",AD89*6/(P51-P49),"") ->  | AF105: % Part-to-Part (PV) | AJ105: =IF(AD89<>"",AD89/P47) -> FALSE
L107: Total Variation (TV) | Q107: =+AD90 ->  | S107: Number of Distinct Characteristics | X107: =IFERROR(1.41*AD89/AD88,"") ->  | Z107: Number of Distinct Characteristics | AD107: =+X107 ->  | AF107: Number of Distinct Characteristics | AJ107: =+X107 -> 
B110: MSA ANOVA | C110: UCL a | D110: LCL a | E110: avarage | F110: ='2) MSA Type 2 (ANOVA)'!L70 -> Appariser A | G110: ='2) MSA Type 2 (ANOVA)'!L75 -> Appariser B | H110: ='2) MSA Type 2 (ANOVA)'!L80 -> Appariser C | J110: UCL r | L110: RESULT | S110: =IF(X103<>"",IF(X103<0.1,"MSA OK",IF(X103<0.3,"Gauge may be OK","Gauge needs improvement")),"") ->  | Z110: =IF(AD103<>"",IF(AD103<0.1,"MSA OK",IF(AD103<0.3,"Gauge may be OK","Gauge needs improvement")),"") ->  | AF110: =IF(AJ103<>"",IF(AJ103<0.1,"MSA OK",IF(AJ103<0.3,"Gauge may be OK","Gauge needs improvement")),"") -> Gauge needs improvement
B111: 1 | C111: ='2) MSA Type 2 (ANOVA)'!Y81+(3*_xlfn.STDEV.P('2) MSA Type 2 (ANOVA)'!Y70,'2) MSA Type 2 (ANOVA)'!Y80,'2) MSA Type 2 (ANOVA)'!Y75)) ->  | D111: ='2) MSA Type 2 (ANOVA)'!Y81-(3*_xlfn.STDEV.P('2) MSA Type 2 (ANOVA)'!Y70,'2) MSA Type 2 (ANOVA)'!Y80,'2) MSA Type 2 (ANOVA)'!Y75)) ->  | E111: =AVERAGE('2) MSA Type 2 (ANOVA)'!N82:W82) ->  | F111: ='2) MSA Type 2 (ANOVA)'!N73 ->  | G111: ='2) MSA Type 2 (ANOVA)'!N78 ->  | H111: ='2) MSA Type 2 (ANOVA)'!N83 ->  | J111: =+'2) MSA Type 2 (ANOVA)'!Y85 -> 0
B112: 2 | C112: ='2) MSA Type 2 (ANOVA)'!Y81+(3*_xlfn.STDEV.P('2) MSA Type 2 (ANOVA)'!Y70,'2) MSA Type 2 (ANOVA)'!Y80,'2) MSA Type 2 (ANOVA)'!Y75)) ->  | D112: ='2) MSA Type 2 (ANOVA)'!Y81-(3*_xlfn.STDEV.P('2) MSA Type 2 (ANOVA)'!Y70,'2) MSA Type 2 (ANOVA)'!Y80,'2) MSA Type 2 (ANOVA)'!Y75)) ->  | E112: =AVERAGE('2) MSA Type 2 (ANOVA)'!N82:W82) ->  | F112: ='2) MSA Type 2 (ANOVA)'!O73 ->  | G112: ='2) MSA Type 2 (ANOVA)'!O78 ->  | H112: ='2) MSA Type 2 (ANOVA)'!O83 ->  | J112: =+'2) MSA Type 2 (ANOVA)'!Y85 -> 0
B113: 3 | C113: ='2) MSA Type 2 (ANOVA)'!Y81+(3*_xlfn.STDEV.P('2) MSA Type 2 (ANOVA)'!Y70,'2) MSA Type 2 (ANOVA)'!Y80,'2) MSA Type 2 (ANOVA)'!Y75)) ->  | D113: ='2) MSA Type 2 (ANOVA)'!Y81-(3*_xlfn.STDEV.P('2) MSA Type 2 (ANOVA)'!Y70,'2) MSA Type 2 (ANOVA)'!Y80,'2) MSA Type 2 (ANOVA)'!Y75)) ->  | E113: =AVERAGE('2) MSA Type 2 (ANOVA)'!N82:W82) ->  | F113: ='2) MSA Type 2 (ANOVA)'!P73 ->  | G113: ='2) MSA Type 2 (ANOVA)'!P78 ->  | H113: ='2) MSA Type 2 (ANOVA)'!P83 ->  | J113: =+'2) MSA Type 2 (ANOVA)'!Y85 -> 0
B114: 4 | C114: ='2) MSA Type 2 (ANOVA)'!Y81+(3*_xlfn.STDEV.P('2) MSA Type 2 (ANOVA)'!Y70,'2) MSA Type 2 (ANOVA)'!Y80,'2) MSA Type 2 (ANOVA)'!Y75)) ->  | D114: ='2) MSA Type 2 (ANOVA)'!Y81-(3*_xlfn.STDEV.P('2) MSA Type 2 (ANOVA)'!Y70,'2) MSA Type 2 (ANOVA)'!Y80,'2) MSA Type 2 (ANOVA)'!Y75)) ->  | E114: =AVERAGE('2) MSA Type 2 (ANOVA)'!N82:W82) ->  | F114: ='2) MSA Type 2 (ANOVA)'!Q73 ->  | G114: ='2) MSA Type 2 (ANOVA)'!Q78 ->  | H114: ='2) MSA Type 2 (ANOVA)'!Q83 ->  | J114: =+'2) MSA Type 2 (ANOVA)'!Y85 -> 0
B115: 5 | C115: ='2) MSA Type 2 (ANOVA)'!Y81+(3*_xlfn.STDEV.P('2) MSA Type 2 (ANOVA)'!Y70,'2) MSA Type 2 (ANOVA)'!Y80,'2) MSA Type 2 (ANOVA)'!Y75)) ->  | D115: ='2) MSA Type 2 (ANOVA)'!Y81-(3*_xlfn.STDEV.P('2) MSA Type 2 (ANOVA)'!Y70,'2) MSA Type 2 (ANOVA)'!Y80,'2) MSA Type 2 (ANOVA)'!Y75)) ->  | E115: =AVERAGE('2) MSA Type 2 (ANOVA)'!N82:W82) ->  | F115: ='2) MSA Type 2 (ANOVA)'!R73 ->  | G115: ='2) MSA Type 2 (ANOVA)'!R78 ->  | H115: ='2) MSA Type 2 (ANOVA)'!R83 ->  | J115: =+'2) MSA Type 2 (ANOVA)'!Y85 -> 0
B116: 6 | C116: ='2) MSA Type 2 (ANOVA)'!Y81+(3*_xlfn.STDEV.P('2) MSA Type 2 (ANOVA)'!Y70,'2) MSA Type 2 (ANOVA)'!Y80,'2) MSA Type 2 (ANOVA)'!Y75)) ->  | D116: ='2) MSA Type 2 (ANOVA)'!Y81-(3*_xlfn.STDEV.P('2) MSA Type 2 (ANOVA)'!Y70,'2) MSA Type 2 (ANOVA)'!Y80,'2) MSA Type 2 (ANOVA)'!Y75)) ->  | E116: =AVERAGE('2) MSA Type 2 (ANOVA)'!N82:W82) ->  | F116: ='2) MSA Type 2 (ANOVA)'!S73 ->  | G116: ='2) MSA Type 2 (ANOVA)'!S78 ->  | H116: ='2) MSA Type 2 (ANOVA)'!S83 ->  | J116: =+'2) MSA Type 2 (ANOVA)'!Y85 -> 0
B117: 7 | C117: ='2) MSA Type 2 (ANOVA)'!Y81+(3*_xlfn.STDEV.P('2) MSA Type 2 (ANOVA)'!Y70,'2) MSA Type 2 (ANOVA)'!Y80,'2) MSA Type 2 (ANOVA)'!Y75)) ->  | D117: ='2) MSA Type 2 (ANOVA)'!Y81-(3*_xlfn.STDEV.P('2) MSA Type 2 (ANOVA)'!Y70,'2) MSA Type 2 (ANOVA)'!Y80,'2) MSA Type 2 (ANOVA)'!Y75)) ->  | E117: =AVERAGE('2) MSA Type 2 (ANOVA)'!N82:W82) ->  | F117: ='2) MSA Type 2 (ANOVA)'!T73 ->  | G117: ='2) MSA Type 2 (ANOVA)'!T78 ->  | H117: ='2) MSA Type 2 (ANOVA)'!T83 ->  | J117: =+'2) MSA Type 2 (ANOVA)'!Y85 -> 0
B118: 8 | C118: ='2) MSA Type 2 (ANOVA)'!Y81+(3*_xlfn.STDEV.P('2) MSA Type 2 (ANOVA)'!Y70,'2) MSA Type 2 (ANOVA)'!Y80,'2) MSA Type 2 (ANOVA)'!Y75)) ->  | D118: ='2) MSA Type 2 (ANOVA)'!Y81-(3*_xlfn.STDEV.P('2) MSA Type 2 (ANOVA)'!Y70,'2) MSA Type 2 (ANOVA)'!Y80,'2) MSA Type 2 (ANOVA)'!Y75)) ->  | E118: =AVERAGE('2) MSA Type 2 (ANOVA)'!N82:W82) ->  | F118: ='2) MSA Type 2 (ANOVA)'!U73 ->  | G118: ='2) MSA Type 2 (ANOVA)'!U78 ->  | H118: ='2) MSA Type 2 (ANOVA)'!U83 ->  | J118: =+'2) MSA Type 2 (ANOVA)'!Y85 -> 0
B119: 9 | C119: ='2) MSA Type 2 (ANOVA)'!Y81+(3*_xlfn.STDEV.P('2) MSA Type 2 (ANOVA)'!Y70,'2) MSA Type 2 (ANOVA)'!Y80,'2) MSA Type 2 (ANOVA)'!Y75)) ->  | D119: ='2) MSA Type 2 (ANOVA)'!Y81-(3*_xlfn.STDEV.P('2) MSA Type 2 (ANOVA)'!Y70,'2) MSA Type 2 (ANOVA)'!Y80,'2) MSA Type 2 (ANOVA)'!Y75)) ->  | E119: =AVERAGE('2) MSA Type 2 (ANOVA)'!N82:W82) ->  | F119: ='2) MSA Type 2 (ANOVA)'!V73 ->  | G119: ='2) MSA Type 2 (ANOVA)'!V78 ->  | H119: ='2) MSA Type 2 (ANOVA)'!V83 ->  | J119: =+'2) MSA Type 2 (ANOVA)'!Y85 -> 0
B120: 10 | C120: ='2) MSA Type 2 (ANOVA)'!Y81+(3*_xlfn.STDEV.P('2) MSA Type 2 (ANOVA)'!Y70,'2) MSA Type 2 (ANOVA)'!Y80,'2) MSA Type 2 (ANOVA)'!Y75)) ->  | D120: ='2) MSA Type 2 (ANOVA)'!Y81-(3*_xlfn.STDEV.P('2) MSA Type 2 (ANOVA)'!Y70,'2) MSA Type 2 (ANOVA)'!Y80,'2) MSA Type 2 (ANOVA)'!Y75)) ->  | E120: =AVERAGE('2) MSA Type 2 (ANOVA)'!N82:W82) ->  | F120: ='2) MSA Type 2 (ANOVA)'!W73 ->  | G120: ='2) MSA Type 2 (ANOVA)'!W78 ->  | H120: ='2) MSA Type 2 (ANOVA)'!W83 ->  | J120: =+'2) MSA Type 2 (ANOVA)'!Y85 -> 0

Sheet 3) MSA Attribute
B4: Section | C4: =UPPER("Sheet specific INFORMATION") -> SHEET SPECIFIC INFORMATION
B6: =OFFSET(B6,-1,)+1 -> 1 | C6: MSA Attribute
B7: =OFFSET(B7,-1,) -> 1
B8: =OFFSET(B8,-1,) -> 1 | C8: Reference Value | J8: Date Performed
B9: 1
B10: 1 | C10: Specification Number | J10: Gauge Name
B11: 1 | S11: A | U11: B | W11: C
B12: 1 | C12: Characteristic Name | J12: Gauge Number
B13: 1
B14: 1 | C14: Characteristic Type | J14: Gauge Type
B15: 1
B16: 1 | C16: TPS No.
B17: 1
B18: 1 | C18: Specifications
B19: 1
B20: 1 | C20: - LSL | J20: Appraiser A
B21: 1
B22: 1 | C22: - USL | J22: Appraiser B
B23: 1
B24: 1 | C24: Resolution | J24: Appraiser C
B25: 1
B26: 1 | C26: No. of Trials | G26: =IF(D37<>"",COUNT(D37:F37),"") ->  | J26: Approved Date
B27: 1
B28: 1 | C28: No. of Parts | G28: =IF(D37<>"",COUNT(D37:D86),"") ->  | J28: Approved By ID
B29: 1
B30: 1 | C30: No. of Appraisers | G30: =IF(D37<>"",COUNT(D37,G37,J37),"") ->  | J30: Approved By Name
B31: 1
B32: 1
B33: 1
B34: 1
B35: 1 | C35: Part | D35: Appraiser-Evaluation | M35: Stan-dard | N35: Standard Value | O35: Code | W35: A analysis | AA35: B analysis | AE35: C analysis | AI35: System
B36: 1 | D36: A-1 | E36: A-2 | F36: A-3 | G36: B-1 | H36: B-2 | I36: B-3 | J36: C-1 | K36: C-2 | L36: C-3 | W36: =IF(D37<>"",IF(AND(D37=E37,E37=F37),1,0),"") ->  | X36: =IF(D37<>"",IF(AND(D37=E37,E37=F37,F37=M37),1,0),"") ->  | Y36: =IF(W36<>"",IF(W36<>X36,M37,""),"") ->  | AA36: =IF(G37<>"",IF(AND(G37=H37,G37=I37),1,0),"") ->  | AB36: =IF(G37<>"",IF(AND(G37=H37,H37=I37,I37=M37),1,0),"") ->  | AC36: =IF(AA36<>"",IF(AA36<>AB36,M37,""),"") ->  | AE36: =IF(J37<>"",IF(AND(J37=K37,K37=L37),1,0),"") ->  | AF36: =IF(J37<>"",IF(AND(J37=K37,K37=L37,L37=M37),1,0),"") ->  | AG36: =IF(AE36<>"",IF(AE36<>AF36,M37,""),"") ->  | AI36: =IF(D37<>"",IF(OR(SUM(D37:L37)=COUNT(D37:L37),SUM(D37:L37)=0),1,0),"") ->  | AJ36: =IF(AF36<>"",IF(X36+AB36+AF36=3,1,0),"") -> 
B37: 1 | C37: 1 | O37: =IF(D37<>"",IF(SUM(D37:L37)=COUNT(D37:L37),"+",IF(SUM(D37:L37)=0,"-","x")),"") -> 
B38: 1 | C38: =C37+1 -> 2 | O38: =IF(D38<>"",IF(SUM(D38:L38)=COUNT(D38:L38),"+",IF(SUM(D38:L38)=0,"-","x")),"") -> 
B39: 1 | C39: 3
B40: 1 | C40: 4
B41: 1 | C41: 5
B42: 1 | C42: 6
B43: 1 | C43: 7
B44: 1 | C44: 8
B45: 1 | C45: 9
B46: 1 | C46: 10
B47: 1 | C47: 11
B48: 1 | C48: 12
B49: 1 | C49: 13
B50: 1 | C50: 14
B51: 1 | C51: 15
B52: 1 | C52: 16
B53: 1 | C53: 17
B54: 1 | C54: 18
B55: 1 | C55: 19
B56: 1 | C56: 20
B57: 1 | C57: 21
B58: 1 | C58: 22
B59: 1 | C59: 23
B60: 1 | C60: 24
B61: 1 | C61: 25
B62: 1 | C62: 26
B63: 1 | C63: 27
B64: 1 | C64: 28
B65: 1 | C65: 29
B66: 1 | C66: 30
B67: 1 | C67: 31 | O67: =IF(D67<>"",IF(SUM(D67:L67)=9,"+",IF(SUM(D67:L67)=0,"-","x")),"") -> 
B68: 1 | C68: 32 | W68: =IF(D69<>"",IF(AND(D69=E69,E69=F69),1,0),"") ->  | X68: =IF(D69<>"",IF(AND(D69=E69,E69=F69,F69=M69),1,0),"") ->  | Y68: =IF(W68<>"",IF(W68<>X68,M69,""),"") ->  | AA68: =IF(G69<>"",IF(AND(G69=H69,G69=I69),1,0),"") ->  | AB68: =IF(G69<>"",IF(AND(G69=H69,H69=I69,I69=M69),1,0),"") ->  | AC68: =IF(AA68<>"",IF(AA68<>AB68,M69,""),"") ->  | AE68: =IF(J69<>"",IF(AND(J69=K69,K69=L69),1,0),"") ->  | AF68: =IF(J69<>"",IF(AND(J69=K69,K69=L69,L69=M69),1,0),"") ->  | AG68: =IF(AE68<>"",IF(AE68<>AF68,M69,""),"") ->  | AI68: =IF(D69<>"",IF(OR(SUM(D69:L69)=COUNT(D69:L69),SUM(D69:L69)=0),1,0),"") -> 
B69: 1 | C69: 33
B70: 1 | C70: 34
B71: 1 | C71: 35
B72: =OFFSET(B72,-1,) -> 1 | C72: 36
B73: 1 | C73: 37
B74: 1 | C74: 38
B75: 1 | C75: 39
B76: 1 | C76: 40
B77: 1 | C77: =C76+1 -> 41 | O77: =IF(D77<>"",IF(SUM(D77:L77)=9,"+",IF(SUM(D77:L77)=0,"-","x")),"") -> 
B78: 1 | C78: =C77+1 -> 42
B79: 1 | C79: 43
B80: 1 | C80: 44
B81: 1 | C81: 45
B82: 1 | C82: 46
B83: 1 | C83: 47
B84: 1 | C84: 48
B85: 1 | C85: 49
B86: 1 | C86: 50
B87: 1
B88: 1 | C88: =IF(D37<>"",IF(G28<30,"Less than 30 trials, the statistical uncertainty decreases with increased number of trials",""),"") -> 
B89: 1 | C89: =IF(D37<>"",IF(G26<3,"Less than 3 repetitions, the statistical uncertainty decreases with increased number of trials",""),"") ->  | W89: A | Y89: B | AA89: C
B90: 1 | W90: =IF(F94<>"",F96-F97,"") ->  | Y90: =IF(H94<>"",H96-H97,"") ->  | AA90: =IF(J94<>"",J96-J97,"") -> 
B91: 1 | C91: Appraisers | W91: =IF(F94<>"",F97-F98,"") ->  | Y91: =IF(H94<>"",H97-H98,"") ->  | AA91: =IF(J94<>"",J97-J98,"") -> 
B92: 1 | F92: Within Appraiser (*1) | L92: Between Appraisers (*2) | W92: =IF(F94<>"",F112-F113,"") ->  | Y92: =IF(H94<>"",H112-H113,"") ->  | AA92: =IF(J94<>"",J112-J113,"") -> 
B93: 1 | F93: Appraiser A | H93: Appraiser B | J93: Appraiser C | W93: =IF(F94<>"",F113-F114,"") ->  | Y93: =IF(H94<>"",H113-H114,"") ->  | AA93: =IF(J94<>"",J113-J114,"") -> 
B94: 1 | C94: Total Inspected | F94: =IF(D37<>"",COUNT(D37:D86),"") ->  | H94: =IF(G37<>"",COUNT(G37:G86),"") ->  | J94: =IF(J37<>"",COUNT(J37:J86),"") ->  | L94: =F94 -> 
B95: 1 | C95: # Matched | F95: =IF(D37<>"",SUM(W36:W85),"") ->  | H95: =IF(G37<>"",SUM(AA36:AA85),"") ->  | J95: =IF(J37<>"",SUM(AE36:AE85),"") ->  | L95: =IF(F94<>"",SUM(AI36:AI85),"") -> 
B96: 1 | C96: 95% upper CI | F96: =IF(F95<>"",IF(F94=F95,1,(2*(F95+1)*FINV(0.025,2*(F95+1),2*(F94-F95)))/(2*(F94-F95)+2*(F95+1)*FINV(0.025,2*(F95+1),2*(F94-F95)))),"") ->  | H96: =IF(H95<>"",IF(H94=H95,1,(2*(H95+1)*FINV(0.025,2*(H95+1),2*(H94-H95)))/(2*(H94-H95)+2*(H95+1)*FINV(0.025,2*(H95+1),2*(H94-H95)))),"") ->  | J96: =IF(J95<>"",IF(J94=J95,1,(2*(J95+1)*FINV(0.025,2*(J95+1),2*(J94-J95)))/(2*(J94-J95)+2*(J95+1)*FINV(0.025,2*(J95+1),2*(J94-J95)))),"") ->  | L96: =IF(L95<>"",IF(L94=L95,1,(2*(L95+1)*FINV(0.025,2*(L95+1),2*(L94-L95)))/(2*(L94-L95)+2*(L95+1)*FINV(0.025,2*(L95+1),2*(L94-L95)))),"") -> 
B97: 1 | C97: Calculated Score | F97: =IF(F94<>"",F95/F94,"") ->  | H97: =IF(H94<>"",H95/H94,"") ->  | J97: =IF(J94<>"",J95/J94,"") ->  | L97: =IF(L94<>"",L95/L94,"") -> 
B98: 1 | C98: 95% lower CI | F98: =IF(F95<>"",IF(F95=0,0,(2*F95*FINV(0.975,2*F95,2*(F94-F95+1)))/(2*(F94-F95+1)+2*F95*FINV(0.975,2*F95,2*(F94-F95+1)))),"") ->  | H98: =IF(H95<>"",IF(F95=0,0,(2*H95*FINV(0.975,2*H95,2*(H94-H95+1)))/(2*(H94-H95+1)+2*H95*FINV(0.975,2*H95,2*(H94-H95+1)))),"") ->  | J98: =IF(J95<>"",IF(F95=0,0,(2*J95*FINV(0.975,2*J95,2*(J94-J95+1)))/(2*(J94-J95+1)+2*J95*FINV(0.975,2*J95,2*(J94-J95+1)))),"") ->  | L98: =IF(L95<>"",IF(F95=0,0,(2*L95*FINV(0.975,2*L95,2*(L94-L95+1)))/(2*(L94-L95+1)+2*L95*FINV(0.975,2*L95,2*(L94-L95+1)))),"") -> 
B99: 1
B100: 1 | C100: *1) Within Appraiser: Appraisers agree between themselves on all trials A
B101: 1 | C101: *2) Between Appraisers: All appraisers agreed within and between themselves C
B102: 1
B103: 1
B104: 1 | C104: Appraisers vs. Standard
B105: 1 | C105: Source | F105: Appraiser vs. Standard (*3) | L105: All Appraisers vs. Standard (*4)
B106: 1 | F106: Appraiser A | H106: Appraiser B | J106: Appraiser C
B107: 1 | C107: Total Inspected | F107: =F94 ->  | H107: =H94 ->  | J107: =J94 ->  | L107: =F107 -> 
B108: 1 | C108: # Matched | F108: =IF(F107<>"",SUM(X36:X85),"") ->  | H108: =IF(H107<>"",SUM(AB36:AB85),"") ->  | J108: =IF(J107<>"",SUM(AF36:AF85),"") ->  | L108: =IF(F107<>"",SUM(AJ36:AJ85),"") -> 
B109: 1 | C109: False Positive (*5) | F109: =IF(F107<>"",COUNTIF(Y36:Y85,"=1"),"") ->  | H109: =IF(H107<>"",COUNTIF(AC36:AC85,"=1"),"") ->  | J109: =IF(J107<>"",COUNTIF(AG36:AG85,"=1"),"") -> 
B110: 1 | C110: False Negative (*6) | F110: =IF(F107<>"",COUNTIF(Y36:Y85,"=0"),"") ->  | H110: =IF(H107<>"",COUNTIF(AC36:AC85,"=0"),"") ->  | J110: =IF(J107<>"",COUNTIF(AG36:AG85,"=0"),"") -> 
B111: 1 | C111: Mixed | F111: =IF(F107<>"",F107-F108-F109-F110,"") ->  | H111: =IF(H107<>"",H107-H108-H109-H110,"") ->  | J111: =IF(J107<>"",J107-J108-J109-J110,"") -> 
B112: 1 | C112: 95% upper CI (*7) | F112: =IF(F108<>"",IF(F107=F108,1,(2*(F108+1)*FINV(0.025,2*(F108+1),2*(F107-F108)))/(2*(F107-F108)+2*(F108+1)*FINV(0.025,2*(F108+1),2*(F107-F108)))),"") ->  | H112: =IF(H108<>"",IF(H107=H108,1,(2*(H108+1)*FINV(0.025,2*(H108+1),2*(H107-H108)))/(2*(H107-H108)+2*(H108+1)*FINV(0.025,2*(H108+1),2*(H107-H108)))),"") ->  | J112: =IF(J108<>"",IF(J107=J108,1,(2*(J108+1)*FINV(0.025,2*(J108+1),2*(J107-J108)))/(2*(J107-J108)+2*(J108+1)*FINV(0.025,2*(J108+1),2*(J107-J108)))),"") ->  | L112: =IF(L108<>"",IF(L107=L108,1,(2*(L108+1)*FINV(0.025,2*(L108+1),2*(L107-L108)))/(2*(L107-L108)+2*(L108+1)*FINV(0.025,2*(L108+1),2*(L107-L108)))),"") -> 
B113: 1 | C113: Calculated Score | F113: =IF(F107<>"",F108/F107,"") ->  | H113: =IF(H107<>"",H108/H107,"") ->  | J113: =IF(J107<>"",J108/J107,"") ->  | L113: =IF(L107<>"",L108/L107,"") -> 
B114: 1 | C114: 95% lower CI (*7) | F114: =IF(F108<>"",IF(F108=0,0,(2*F108*FINV(0.975,2*F108,2*(F107-F108+1)))/(2*(F107-F108+1)+2*F108*FINV(0.975,2*F108,2*(F107-F108+1)))),"") ->  | H114: =IF(H108<>"",IF(F108=0,0,(2*H108*FINV(0.975,2*H108,2*(H107-H108+1)))/(2*(H107-H108+1)+2*H108*FINV(0.975,2*H108,2*(H107-H108+1)))),"") ->  | J114: =IF(J108<>"",IF(F108=0,0,(2*J108*FINV(0.975,2*J108,2*(J107-J108+1)))/(2*(J107-J108+1)+2*J108*FINV(0.975,2*J108,2*(J107-J108+1)))),"") ->  | L114: =IF(L108<>"",IF(F108=0,0,(2*L108*FINV(0.975,2*L108,2*(L107-L108+1)))/(2*(L107-L108+1)+2*L108*FINV(0.975,2*L108,2*(L107-L108+1)))),"") -> 
B115: 1 | C115: Decision | F115: =IF(F107<>"",IF(AND(F113>=0.9,F113<=1),"Accepted",IF(F113<=0.8,"Not accepted","Might be acceptable")),"") ->  | H115: =IF(H107<>"",IF(AND(H113>=0.9,H113<=1),"Accepted",IF(H113<=0.8,"Not accepted","Might be acceptable")),"") ->  | J115: =IF(J107<>"",IF(AND(J113>=0.9,J113<=1),"Accepted",IF(J113<=0.8,"Not accepted","Might be acceptable")),"") ->  | L115: =IF(L107<>"",IF(AND(L113>=0.9,L113<=1),"Accepted",IF(L113<=0.8,"Not accepted","Might be acceptable")),"") -> 
B116: 1
B117: 1 | C117: *3) Appraiser vs. Standard: Appraiser agrees on all trials with the known standard B
B118: 1 | C118: *4) All Appraisers vs. Standard: Appraisers agree on all trials with the known standard
B119: 1 | C119: *5) False Positive: Appraiser biased towards rejection
B120: 1 | C120: *6) False Negative: Appraiser biased towards acceptance
B121: 1 | C121: *7) UCL and LCL: Upper and lower confidence interval boundaries.
B122: 1
B123: 1

Sheet 4) MSA Supplier Format
C4: =UPPER("Sheet specific INFORMATION") -> SHEET SPECIFIC INFORMATION
B13: =OFFSET(B13,-1,) -> 0 | C13: Gauge Identification Number
B14: 0
B15: 0 | C15: Date of Approval
B16: 0
B17: 0 | C17: Test Report Approver ID
B18: 0
B19: 0 | C19: Test Report Approver Name
B20: 0
B21: 0 | C21: Test Report Approver Function
B22: 0
B23: 0 | C23: Test Report Approver Company
B24: 0
B25: 0 | C25: Description of the method and result evaluation
B26: 0
B27: 0
B28: 0

Sheet 5) Capability Study
O4: =UPPER("Sheet specific INFORMATION") -> SHEET SPECIFIC INFORMATION
B7: Inst
B8: Inst
B9: Inst
B10: Inst
B11: Inst
B12: Inst
B13: Inst
B14: Inst
B15: Inst
B16: Inst
B17: Inst
B18: Inst
B19: Inst
B20: Inst
B21: Inst
B22: Inst
B23: Inst
B24: Inst
B25: Inst
B26: Inst
B27: Inst
B28: Inst
B29: Inst
B30: Inst
B31: Inst
B32: Inst
B33: Inst
B34: Inst
B35: Inst
B36: Inst
O38: Capability Study Calculations
O40: Ref. No. | T40: Gauge Name
O42: Mean/Target Value | T42: Gauge Number
O44: Specification Number | T44: Gauge Type
O46: Characteristic Name | T46: Date Performed
O48: Characteristic Type
O50: Resolution | T50: Approved Date
O52: Specifications | T52: Approved By ID
O54: - LSL | T54: Approved Name
O56: - USL | T56: Approved Function
O58: Used sigma coverage (default 6): | R58: 6 | T58: Approved Company
O59: ONLY INSERT VALUES
O60: No. | P60: Data | Q60: No. | R60: Data | S60: No. | T60: Data | U60: No. | V60: Data
B61: msa | C61: Count | D61: =60-COUNTIF(D63:D122,"") -> 5 | E61: STDV | F61: =R82 ->  | O61: 1 | Q61: 16 | S61: 31 | U61: 46
B62: msa | C62: No | D62: data | E62: average | F62: UCL | G62: LCL | H62: Column1 | I62: No. | J62: range | K62: range - | L62: UCL2 | M62: LCL3 | O62: 2 | Q62: 17 | S62: 32 | U62: 47
B63: msa | C63: 1 | D63: =IF('1) MSA Type 1'!P86<>"",'1) MSA Type 1'!P86,"") ->  | E63: =IF(D63<>"",AVERAGE(D63:D122),"") ->  | F63: =+E63+(3*$F$41) ->  | G63: =+E63-(3*$F$41) ->  | I63: =C63 -> 1 | K63: =AVERAGE(J64:J122) -> 0 | L63: =+K63+(3*_xlfn.STDEV.P(J64:J122)) -> 0 | M63: =IF(K63-(3*_xlfn.STDEV.P(J64:J122))<0,0,(K63-(3*_xlfn.STDEV.P(J64:J122)))) -> 0 | O63: 3 | Q63: 18 | S63: 33 | U63: 48
B64: msa | C64: =C63+1 -> 2 | D64: =IF('1) MSA Type 1'!P87<>"",'1) MSA Type 1'!P87,"") ->  | E64: =E63 ->  | I64: 2 | J64: =IFERROR(ABS(D63-D64),0) -> 0 | K64: =K63 -> 0 | L64: =L63 -> 0 | M64: =M63 -> 0 | O64: 4 | Q64: 19 | S64: 34 | U64: 49
B65: msa | C65: 3 | D65: =IF('1) MSA Type 1'!P88<>"",'1) MSA Type 1'!P88,"") ->  | I65: 3 | J65: 0 | K65: 0 | L65: 0 | M65: 0 | O65: 5 | Q65: 20 | S65: 35 | U65: 50
B66: msa | C66: 4 | D66: =IF('1) MSA Type 1'!P89<>"",'1) MSA Type 1'!P89,"") ->  | I66: 4 | J66: 0 | K66: 0 | L66: 0 | M66: 0 | O66: 6 | Q66: 21 | S66: 36 | U66: 51
B67: msa | C67: 5 | D67: =IF('1) MSA Type 1'!P90<>"",'1) MSA Type 1'!P90,"") ->  | I67: 5 | J67: 0 | K67: 0 | L67: 0 | M67: 0 | O67: 7 | Q67: 22 | S67: 37 | U67: 52
B68: msa | C68: 6 | D68: =IF('1) MSA Type 1'!P91<>"",'1) MSA Type 1'!P91,"") ->  | I68: 6 | J68: 0 | K68: 0 | L68: 0 | M68: 0 | O68: 8 | Q68: 23 | S68: 38 | U68: 53
B69: msa | C69: 7 | D69: =IF('1) MSA Type 1'!P92<>"",'1) MSA Type 1'!P92,"") ->  | I69: 7 | J69: 0 | K69: 0 | L69: 0 | M69: 0 | O69: 9 | Q69: 24 | S69: 39 | U69: 54
B70: msa | C70: 8 | D70: =IF('1) MSA Type 1'!P93<>"",'1) MSA Type 1'!P93,"") ->  | I70: 8 | J70: 0 | K70: 0 | L70: 0 | M70: 0 | O70: 10 | Q70: 25 | S70: 40 | U70: 55
B71: msa | C71: 9 | D71: =IF('1) MSA Type 1'!P94<>"",'1) MSA Type 1'!P94,"") ->  | I71: 9 | J71: 0 | K71: 0 | L71: 0 | M71: 0 | O71: 11 | Q71: 26 | S71: 41 | U71: 56
B72: msa | C72: 10 | D72: =IF('1) MSA Type 1'!P95<>"",'1) MSA Type 1'!P95,"") ->  | I72: 10 | J72: 0 | K72: 0 | L72: 0 | M72: 0 | O72: 12 | Q72: 27 | S72: 42 | U72: 57
B73: msa | C73: 11 | D73: =IF('1) MSA Type 1'!P96<>"",'1) MSA Type 1'!P96,"") ->  | I73: 11 | J73: 0 | K73: 0 | L73: 0 | M73: 0 | O73: 13 | Q73: 28 | S73: 43 | U73: 58
B74: msa | C74: 12 | D74: =IF('1) MSA Type 1'!P97<>"",'1) MSA Type 1'!P97,"") -> Cp | I74: 12 | J74: 0 | K74: 0 | L74: 0 | M74: 0 | O74: 14 | Q74: 29 | S74: 44 | U74: 59
B75: msa | C75: 13 | D75: =IF('1) MSA Type 1'!P98<>"",'1) MSA Type 1'!P98,"") -> Cpk | I75: 13 | J75: 0 | K75: 0 | L75: 0 | M75: 0 | O75: 15 | Q75: 30 | S75: 45 | U75: 60
C76: 14 | D76: =IF('1) MSA Type 1'!P99<>"",'1) MSA Type 1'!P99,"") -> Cpl | I76: 14 | J76: 0 | K76: 0 | L76: 0 | M76: 0
C77: 15 | D77: =IF('1) MSA Type 1'!P100<>"",'1) MSA Type 1'!P100,"") -> Cpu | I77: 15 | J77: 0 | K77: 0 | L77: 0 | M77: 0
C78: 16 | D78: =IF('1) MSA Type 1'!R86<>"",'1) MSA Type 1'!R86,"") ->  | I78: 16 | J78: 0 | K78: 0 | L78: 0 | M78: 0 | O78: Basic Statistics | T78: Bias
C79: 17 | D79: =IF('1) MSA Type 1'!R87<>"",'1) MSA Type 1'!R87,"") ->  | I79: 17 | J79: 0 | K79: 0 | L79: 0 | M79: 0 | O79: Reference value | R79: =IF(Q42<>"",Q42,"") ->  | T79: Bias: | U79: =IF(AND(R81<>"",R79<>""),R81-R79,"") -> 
C80: 18 | D80: =IF('1) MSA Type 1'!R88<>"",'1) MSA Type 1'!R88,"") ->  | I80: 18 | J80: 0 | K80: 0 | L80: 0 | M80: 0 | O80: Measurements | R80: =IF(P61<>"",COUNT(P61:P75,R61:R75,T61:T75,V61:V75),"") ->  | T80: T: | U80: =IF(AND(R79<>"",R81<>"",R82<>""),(R81-R79)*SQRT(ABS(R80))/(R82),"") -> 
C81: 19 | D81: =IF('1) MSA Type 1'!R89<>"",'1) MSA Type 1'!R89,"") ->  | I81: 19 | J81: 0 | K81: 0 | L81: 0 | M81: 0 | O81: Average: | R81: =IF(P61<>"",AVERAGE(P61:P75,R61:R75,T61:T75,V61:V75),"") ->  | T81: P-value: | U81: =IF(AND(U80<>"",R80>1),TDIST(ABS(U80),R80-1,2),"") -> 
C82: 20 | D82: =IF('1) MSA Type 1'!R90<>"",'1) MSA Type 1'!R90,"") ->  | I82: 20 | J82: 0 | K82: 0 | L82: 0 | M82: 0 | O82: Standard dev. (STDEV.S) | R82: =IF(AND(R80<>"",R80>1),_xlfn.STDEV.S(P61:P75,R61:R75,T61:T75,V61:V75),"") -> 
C83: 21 | D83: =IF('1) MSA Type 1'!R91<>"",'1) MSA Type 1'!R91,"") ->  | I83: 21 | J83: 0 | K83: 0 | L83: 0 | M83: 0
C84: 22 | D84: =IF('1) MSA Type 1'!R92<>"",'1) MSA Type 1'!R92,"") ->  | I84: 22 | J84: 0 | K84: 0 | L84: 0 | M84: 0 | O84: Tolerance: | R84: =IF(AND(Q54<>"",Q56<>""),Q56-Q54,"") -> 
C85: 23 | D85: =IF('1) MSA Type 1'!R93<>"",'1) MSA Type 1'!R93,"") ->  | I85: 23 | J85: 0 | K85: 0 | L85: 0 | M85: 0
C86: 24 | D86: =IF('1) MSA Type 1'!R94<>"",'1) MSA Type 1'!R94,"") ->  | I86: 24 | J86: 0 | K86: 0 | L86: 0 | M86: 0
C87: 25 | D87: =IF('1) MSA Type 1'!R95<>"",'1) MSA Type 1'!R95,"") ->  | I87: 25 | J87: 0 | K87: 0 | L87: 0 | M87: 0
C88: 26 | D88: =IF('1) MSA Type 1'!R96<>"",'1) MSA Type 1'!R96,"") ->  | I88: 26 | J88: 0 | K88: 0 | L88: 0 | M88: 0
C89: 27 | D89: =IF('1) MSA Type 1'!R97<>"",'1) MSA Type 1'!R97,"") ->  | I89: 27 | J89: 0 | K89: 0 | L89: 0 | M89: 0
C90: 28 | D90: =IF('1) MSA Type 1'!R98<>"",'1) MSA Type 1'!R98,"") ->  | I90: 28 | J90: 0 | K90: 0 | L90: 0 | M90: 0
C91: 29 | D91: =IF('1) MSA Type 1'!R99<>"",'1) MSA Type 1'!R99,"") ->  | I91: 29 | J91: 0 | K91: 0 | L91: 0 | M91: 0 | O91: Capability results
C92: 30 | D92: =IF('1) MSA Type 1'!R100<>"",'1) MSA Type 1'!R100,"") ->  | I92: 30 | J92: 0 | K92: 0 | L92: 0 | M92: 0 | P92: Cp | Q92: =IFERROR(R84/(R58*R82),"") -> 
C93: 31 | D93: =IF('1) MSA Type 1'!T86<>"",'1) MSA Type 1'!T86,"") -> P-value: | I93: 31 | J93: 0 | K93: 0 | L93: 0 | M93: 0 | P93: Cpk | Q93: =IF(Q54<>"",IF(AND(Q94="",Q95=""),"",MIN(Q94,Q95)),"") -> 
C94: 32 | D94: =IF('1) MSA Type 1'!T87<>"",'1) MSA Type 1'!T87,"") ->  | I94: 32 | J94: 0 | K94: 0 | L94: 0 | M94: 0 | P94: Cpl | Q94: =IF(Q54<>"",IFERROR((R81-Q54)/(R58*0.5*R82),""),"") -> 
C95: 33 | D95: =IF('1) MSA Type 1'!T88<>"",'1) MSA Type 1'!T88,"") ->  | F95: =+E95+(3*$F$41) ->  | G95: =+E95-(3*$F$41) ->  | I95: =C95 -> 33 | J95: 0 | K95: 0 | L95: 0 | M95: 0 | P95: Cpu | Q95: =IF(Q56<>"",IFERROR((Q56-R81)/(R58*0.5*R82),""),"") -> 
C96: =C95+1 -> 34 | D96: =IF('1) MSA Type 1'!T89<>"",'1) MSA Type 1'!T89,"") ->  | E96: =E95 ->  | I96: 34 | J96: =IFERROR(ABS(D95-D96),0) -> 0 | K96: =K95 -> 0 | L96: =L95 -> 0 | M96: =M95 -> 0
C97: 35 | D97: =IF('1) MSA Type 1'!T90<>"",'1) MSA Type 1'!T90,"") ->  | I97: 35 | J97: 0 | K97: 0 | L97: 0 | M97: 0
C98: 36 | D98: =IF('1) MSA Type 1'!T91<>"",'1) MSA Type 1'!T91,"") ->  | I98: 36 | J98: 0 | K98: 0 | L98: 0 | M98: 0
C99: 37 | D99: =IF('1) MSA Type 1'!T92<>"",'1) MSA Type 1'!T92,"") ->  | I99: 37 | J99: 0 | K99: 0 | L99: 0 | M99: 0
C100: 38 | D100: =IF('1) MSA Type 1'!T93<>"",'1) MSA Type 1'!T93,"") ->  | I100: 38 | J100: 0 | K100: 0 | L100: 0 | M100: 0
C101: 39 | D101: =IF('1) MSA Type 1'!T94<>"",'1) MSA Type 1'!T94,"") ->  | I101: 39 | J101: 0 | K101: 0 | L101: 0 | M101: 0
C102: 40 | D102: =IF('1) MSA Type 1'!T95<>"",'1) MSA Type 1'!T95,"") ->  | I102: 40 | J102: 0 | K102: 0 | L102: 0 | M102: 0
C103: 41 | D103: =IF('1) MSA Type 1'!T96<>"",'1) MSA Type 1'!T96,"") ->  | I103: 41 | J103: 0 | K103: 0 | L103: 0 | M103: 0
C104: 42 | D104: =IF('1) MSA Type 1'!T97<>"",'1) MSA Type 1'!T97,"") ->  | I104: 42 | J104: 0 | K104: 0 | L104: 0 | M104: 0
C105: 43 | D105: =IF('1) MSA Type 1'!T98<>"",'1) MSA Type 1'!T98,"") ->  | I105: 43 | J105: 0 | K105: 0 | L105: 0 | M105: 0
C106: 44 | D106: =IF('1) MSA Type 1'!T99<>"",'1) MSA Type 1'!T99,"") ->  | I106: 44 | J106: 0 | K106: 0 | L106: 0 | M106: 0
C107: 45 | D107: =IF('1) MSA Type 1'!T100<>"",'1) MSA Type 1'!T100,"") ->  | I107: 45 | J107: 0 | K107: 0 | L107: 0 | M107: 0
C108: 46 | D108: =IF('1) MSA Type 1'!V86<>"",'1) MSA Type 1'!V86,"") ->  | I108: 46 | J108: 0 | K108: 0 | L108: 0 | M108: 0
C109: 47 | D109: =IF('1) MSA Type 1'!V87<>"",'1) MSA Type 1'!V87,"") ->  | I109: 47 | J109: 0 | K109: 0 | L109: 0 | M109: 0
C110: 48 | D110: =IF('1) MSA Type 1'!V88<>"",'1) MSA Type 1'!V88,"") ->  | I110: 48 | J110: 0 | K110: 0 | L110: 0 | M110: 0
C111: 49 | D111: =IF('1) MSA Type 1'!V89<>"",'1) MSA Type 1'!V89,"") ->  | I111: 49 | J111: 0 | K111: 0 | L111: 0 | M111: 0
C112: 50 | D112: =IF('1) MSA Type 1'!V90<>"",'1) MSA Type 1'!V90,"") ->  | I112: 50 | J112: 0 | K112: 0 | L112: 0 | M112: 0
C113: 51 | D113: =IF('1) MSA Type 1'!V91<>"",'1) MSA Type 1'!V91,"") ->  | I113: 51 | J113: 0 | K113: 0 | L113: 0 | M113: 0
C114: 52 | D114: =IF('1) MSA Type 1'!V92<>"",'1) MSA Type 1'!V92,"") ->  | I114: 52 | J114: 0 | K114: 0 | L114: 0 | M114: 0
C115: 53 | D115: =IF('1) MSA Type 1'!V93<>"",'1) MSA Type 1'!V93,"") ->  | I115: 53 | J115: 0 | K115: 0 | L115: 0 | M115: 0
C116: 54 | D116: =IF('1) MSA Type 1'!V94<>"",'1) MSA Type 1'!V94,"") ->  | I116: 54 | J116: 0 | K116: 0 | L116: 0 | M116: 0
C117: 55 | D117: =IF('1) MSA Type 1'!V95<>"",'1) MSA Type 1'!V95,"") ->  | I117: 55 | J117: 0 | K117: 0 | L117: 0 | M117: 0
C118: 56 | D118: =IF('1) MSA Type 1'!V96<>"",'1) MSA Type 1'!V96,"") ->  | I118: 56 | J118: 0 | K118: 0 | L118: 0 | M118: 0
C119: 57 | D119: =IF('1) MSA Type 1'!V97<>"",'1) MSA Type 1'!V97,"") ->  | I119: 57 | J119: 0 | K119: 0 | L119: 0 | M119: 0
C120: 58 | D120: =IF('1) MSA Type 1'!V98<>"",'1) MSA Type 1'!V98,"") ->  | I120: 58 | J120: 0 | K120: 0 | L120: 0 | M120: 0
C121: 59 | D121: =IF('1) MSA Type 1'!V99<>"",'1) MSA Type 1'!V99,"") ->  | I121: 59 | J121: 0 | K121: 0 | L121: 0 | M121: 0
C122: 60 | D122: =IF('1) MSA Type 1'!V100<>"",'1) MSA Type 1'!V100,"") ->  | I122: 60 | J122: 0 | K122: 0 | L122: 0 | M122: 0

Sheet 16) MSA Average Range (hidden)
O4: =UPPER("Sheet specific INFORMATION") -> SHEET SPECIFIC INFORMATION
O35: MSA Variable Type 2
O37: Ref. No.
O39: Reference Value | V39: Date Preformed
O41: Specification Number | V41: Gage Name
O43: Characteristic Name | V43: Gage Number
O45: Characteristic Type | V45: Gage Type
O47: TPS No.
O49: Known sigma
O51: - LSL | V51: Appraiser A
O53: - USL | V53: Appraiser B
O55: Resolution | V55: Appraiser C
O57: No. of Trails | S57: =IF(Q70<>"",COUNT(Q70:Q72),"") -> 3 | V57: Approved Date
O59: No. of Parts | S59: =IF(Q70<>"",COUNT(Q70:Z70),"") -> 10 | V59: Approved By Id | AT59: squared | AU59: /nr | AV59: /nkr | AW59: /kr | AZ59: squared | BA59: /r
AR60: x.1. | AS60: =SUM(Q70:Z72) -> 5.71 | AT60: =AS60*AS60 -> 32.6041 | AU60: =AT60/AS64 -> 1.086803333 | AX60: x11. | AY60: =SUM(Q70:Q72) -> 1.34 | AZ60: =AY60*AY60 -> 1.7956 | BA60: =AZ60/S57 -> 0.5985333333 | BC60: Squared | BD60: Part 1 | BE60: Part 2 | BF60: Part 3 | BG60: Part 4 | BH60: Part 5 | BI60: Part 6 | BJ60: Part 7 | BK60: Part 8 | BL60: Part 9 | BM60: Part 10
O61: No. of Appraisers | S61: =IF(Q70<>"",COUNT(Q70,Q75,Q80),"") -> 3 | V61: Approved Name | Y61: =IFERROR(VLOOKUP(Y59,#REF!,2,FALSE),"") ->  | AR61: x.2. | AS61: =SUM(Q75:Z77) -> 2.05 | AT61: =AS61*AS61 -> 4.2025 | AU61: =AT61/AS64 -> 0.1400833333 | AX61: x21. | AY61: =SUM(R70:R72) -> -1.82 | AZ61: 3.3124 | BA61: =AZ61/S57 -> 1.104133333 | BB61: Appr A | BC61: Trial 1 | BD61: =Q70*Q70 -> 0.0841 | BE61: =R70*R70 -> 0.3136 | BF61: 1.7956 | BG61: 0.2209 | BH61: 0.64 | BI61: 0.0004 | BJ61: 0.3481 | BK61: 0.0961 | BL61: 5.1076 | BM61: 1.8496
AR62: x.3. | AS62: =SUM(Q80:Z82) -> -7.63 | AT62: =AS62*AS62 -> 58.2169 | AU62: =AT62/AS64 -> 1.940563333 | AX62: x31. | AY62: =SUM(S70:S72) -> 3.78 | AZ62: 14.2884 | BA62: =AZ62/S57 -> 4.7628 | BC62: Trial 2 | BD62: =Q71*Q71 -> 0.1681 | BE62: 0.4624 | BF62: 1.3689 | BG62: 0.25 | BH62: 0.8464 | BI62: 0.0121 | BJ62: 0.5625 | BK62: 0.04 | BL62: 3.9601 | BM62: 1.5625
O63: Known proces variation | V63: Approved Function | Y63: =IFERROR(VLOOKUP(Y59,#REF!,4,FALSE),"") ->  | AR63: x… | AS63: =SUM(AS60:AS62) -> 0.13 | AT63: =AS63*AS63 -> 0.0169 | AV63: =AT63/AS65 -> 0.0001877777778 | AX63: x41. | AY63: =SUM(T70:T72) -> 1.61 | AZ63: 2.5921 | BA63: =AZ63/S57 -> 0.8640333333 | BC63: Trial 3 | BD63: =Q72*Q72 -> 0.4096 | BE63: 0.3364 | BF63: 1.6129 | BG63: 0.4096 | BH63: 0.7056 | BI63: 0.0441 | BJ63: 0.4356 | BK63: 0.0289 | BL63: 4.0401 | BM63: 1.7161
AR64: nr | AS64: =S57*S59 -> 30 | AX64: x51. | AY64: =SUM(U70:U72) -> -2.56 | AZ64: 6.5536 | BA64: =AZ64/S57 -> 2.184533333 | BB64: Appr B | BC64: Trial 1 | BD64: =Q75*Q75 -> 0.0064 | BE64: =R75*R75 -> 0.2209 | BF64: 1.4161 | BG64: 0.0001 | BH64: 0.3136 | BI64: 0.04 | BJ64: 0.2209 | BK64: 0.3969 | BL64: 3.24 | BM64: 2.8224
O65: Use | V65: Approved Company | Y65: =IFERROR(VLOOKUP(Y59,#REF!,5,FALSE),"") ->  | AR65: nkr | AS65: =S57*S59*S61 -> 90 | AX65: x61. | AY65: =SUM(V70:V72) -> -0.3 | AZ65: 0.09 | BA65: =AZ65/S57 -> 0.03 | BC65: Trial 2 | BD65: =Q76*Q76 -> 0.0625 | BE65: 1.4884 | BF65: 0.8836 | BG65: 1.0609 | BH65: 1.44 | BI65: 0.0484 | BJ65: 0.3025 | BK65: 0.0064 | BL65: 4.4944 | BM65: 2.6244
Q66: =IF(AND(S51>S53,S53<>""),"LSL is > USL","") ->  | AR66: kr | AS66: =S57*S61 -> 9 | AX66: x71. | AY66: =SUM(W70:W72) -> 2 | AZ66: 4 | BA66: =AZ66/S57 -> 1.333333333 | BC66: Trial 3 | BD66: =Q77*Q77 -> 0.0049 | BE66: 0.4624 | BF66: 1.7956 | BG66: 0.04 | BH66: 1.6384 | BI66: 0.0036 | BJ66: 0.6889 | BK66: 0.1156 | BL66: 4.7961 | BM66: 2.25
AR67: x1.. | AS67: =SUM(Q70:Q72)+SUM(Q75:Q77)+SUM(Q80:Q82) -> 1.52 | AT67: =AS67*AS67 -> 2.3104 | AW67: =AT67/AS66 -> 0.2567111111 | AX67: x81. | AY67: =SUM(X70:X72) -> -0.68 | AZ67: 0.4624 | BA67: =AZ67/S57 -> 0.1541333333 | BB67: Appr C | BC67: Trial 1 | BD67: =Q80*Q80 -> 0.0016 | BE67: =R80*R80 -> 1.9044 | BF67: 0.7744 | BG67: 0.0196 | BH67: 2.1316 | BI67: 0.0841 | BJ67: 0.0004 | BK67: 0.2116 | BL67: 3.1329 | BM67: 2.2201
O68: Apprai- ser | P68: Trial | Q68: Part | AA68: Average | AR68: x2.. | AS68: =SUM(R70:R72)+SUM(R75:R77)+SUM(R80:R82) -> -7.66 | AT68: 58.6756 | AW68: =AT68/AS66 -> 6.519511111 | AX68: x91. | AY68: =SUM(Y70:Y72) -> 6.26 | AZ68: 39.1876 | BA68: =AZ68/S57 -> 13.06253333 | BC68: Trial 2 | BD68: =Q81*Q81 -> 0.0121 | BE68: 1.2769 | BF68: 1.1881 | BG68: 0.04 | BH68: 1.1449 | BI68: 0.4489 | BJ68: 0.0001 | BK68: 0.3136 | BL68: 2.1025 | BM68: 3.1329
Q69: 1 | R69: 2 | S69: 3 | T69: 4 | U69: 5 | V69: 6 | W69: 7 | X69: 8 | Y69: 9 | Z69: 10 | AR69: x3.. | AS69: =SUM(S70:S72)+SUM(S75:S77)+SUM(S80:S82) -> 9.89 | AT69: 97.8121 | AW69: =AT69/AS66 -> 10.86801111 | AX69: x101. | AY69: =SUM(Z70:Z72) -> -3.92 | AZ69: 15.3664 | BA69: =AZ69/S57 -> 5.122133333 | BC69: Trial 3 | BD69: =Q82*Q82 -> 0.0225 | BE69: 0.9216 | BF69: 0.4489 | BG69: 0.0121 | BH69: 2.1025 | BI69: 0.2401 | BJ69: 0.0441 | BK69: 0.2401 | BL69: 3.4969 | BM69: 4.6656
O70: Appariser A | P70: 1 | Q70: 0.29 | R70: -0.56 | S70: 1.34 | T70: 0.47 | U70: -0.8 | V70: 0.02 | W70: 0.59 | X70: -0.31 | Y70: 2.26 | Z70: -1.36 | AB70: =IF(Q70<>"",AVERAGE(Q70:Z70),"") -> 0.194 | AR70: x4.. | AS70: =SUM(T70:T72)+SUM(T75:T77)+SUM(T80:T82) -> 3.3 | AT70: 10.89 | AW70: =AT70/AS66 -> 1.21 | AX70: x12. | AY70: =SUM(Q75:Q77) -> 0.4 | AZ70: 0.16 | BA70: =AZ70/S57 -> 0.05333333333
P71: 2 | Q71: 0.41 | R71: -0.68 | S71: 1.17 | T71: 0.5 | U71: -0.92 | V71: -0.11 | W71: 0.75 | X71: -0.2 | Y71: 1.99 | Z71: -1.25 | AB71: 0.166 | AR71: x5.. | AS71: =SUM(U70:U72)+SUM(U75:U77)+SUM(U80:U82) -> -9.58 | AT71: 91.7764 | AW71: =AT71/AS66 -> 10.19737778 | AX71: x22. | AY71: =SUM(R75:R77) -> -2.37 | AZ71: 5.6169 | BA71: =AZ71/S57 -> 1.8723
P72: 3 | Q72: 0.64 | R72: -0.58 | S72: 1.27 | T72: 0.64 | U72: -0.84 | V72: -0.21 | W72: 0.66 | X72: -0.17 | Y72: 2.01 | Z72: -1.31 | AB72: 0.211 | AR72: x6.. | AS72: =SUM(V70:V72)+SUM(V75:V77)+SUM(V80:V82) -> -1.67 | AT72: 2.7889 | AW72: =AT72/AS66 -> 0.3098777778 | AX72: x32. | AY72: =SUM(S75:S77) -> 3.47 | AZ72: 12.0409 | BA72: =AZ72/S57 -> 4.013633333
P73: Avg. | Q73: =IF(Q70<>"",SUM(Q70:Q72)/COUNT(Q70:Q72),"") -> 0.4466666667 | R73: -0.6066666667 | S73: 1.26 | T73: 0.5366666667 | U73: -0.8533333333 | V73: -0.1 | W73: 0.6666666667 | X73: -0.2266666667 | Y73: 2.086666667 | Z73: -1.306666667 | AA73: xa= | AB73: 0.1903333333 | AR73: x7.. | AS73: =SUM(W70:W72)+SUM(W75:W77)+SUM(W80:W82) -> 4.09 | AT73: 16.7281 | AW73: =AT73/AS66 -> 1.858677778 | AX73: x42. | AY73: =SUM(T75:T77) -> 1.24 | AZ73: 1.5376 | BA73: =AZ73/S57 -> 0.5125333333
P74: R | Q74: =IF(Q70<>"",MAX(Q70:Q72)-MIN(Q70:Q72),"") -> 0.35 | R74: 0.12 | S74: 0.17 | T74: 0.17 | U74: 0.12 | V74: 0.23 | W74: 0.16 | X74: 0.14 | Y74: 0.27 | Z74: 0.11 | AA74: ra= | AB74: 0.184 | AR74: x8.. | AS74: =SUM(X70:X72)+SUM(X75:X77)+SUM(X80:X82) -> -3.08 | AT74: 9.4864 | AW74: =AT74/AS66 -> 1.054044444 | AX74: x52. | AY74: =SUM(U75:U77) -> -3.04 | AZ74: 9.2416 | BA74: =AZ74/S57 -> 3.080533333
O75: Appariser B | P75: 1 | Q75: 0.08 | R75: -0.47 | S75: 1.19 | T75: 0.01 | U75: -0.56 | V75: -0.2 | W75: 0.47 | X75: -0.63 | Y75: 1.8 | Z75: -1.68 | AB75: 0.001 | AR75: x9.. | AS75: =SUM(Y70:Y72)+SUM(Y75:Y77)+SUM(Y80:Y82) -> 17.46 | AT75: 304.8516 | AW75: =AT75/AS66 -> 33.8724 | AX75: x62. | AY75: =SUM(V75:V77) -> 0.08 | AZ75: 0.0064 | BA75: =AZ75/S57 -> 0.002133333333
P76: 2 | Q76: 0.25 | R76: -1.22 | S76: 0.94 | T76: 1.03 | U76: -1.2 | V76: 0.22 | W76: 0.55 | X76: 0.08 | Y76: 2.12 | Z76: -1.62 | AB76: 0.115 | AR76: x10.. | AS76: =SUM(Z70:Z72)+SUM(Z75:Z77)+SUM(Z80:Z82) -> -14.14 | AT76: 199.9396 | AW76: =AT76/AS66 -> 22.21551111 | AX76: x72. | AY76: =SUM(W75:W77) -> 1.85 | AZ76: 3.4225 | BA76: =AZ76/S57 -> 1.140833333
P77: 3 | Q77: 0.07 | R77: -0.68 | S77: 1.34 | T77: 0.2 | U77: -1.28 | V77: 0.06 | W77: 0.83 | X77: -0.34 | Y77: 2.19 | Z77: -1.5 | AB77: 0.089 | AX77: x82. | AY77: =SUM(X75:X77) -> -0.89 | AZ77: 0.7921 | BA77: =AZ77/S57 -> 0.2640333333
P78: Avg. | Q78: =IF(Q75<>"",SUM(Q75:Q77)/COUNT(Q75:Q77),"") -> 0.1333333333 | R78: -0.79 | S78: 1.156666667 | T78: 0.4133333333 | U78: -1.013333333 | V78: 0.02666666667 | W78: 0.6166666667 | X78: -0.2966666667 | Y78: 2.036666667 | Z78: -1.6 | AA78: xb= | AB78: 0.06833333333 | AX78: x92. | AY78: =SUM(Y75:Y77) -> 6.11 | AZ78: 37.3321 | BA78: =AZ78/S57 -> 12.44403333
P79: R | Q79: =IF(Q75<>"",MAX(Q75:Q77)-MIN(Q75:Q77),"") -> 0.18 | R79: 0.75 | S79: 0.4 | T79: 1.02 | U79: 0.72 | V79: 0.42 | W79: 0.36 | X79: 0.71 | Y79: 0.39 | Z79: 0.18 | AA79: rb= | AB79: 0.513 | AX79: x102. | AY79: =SUM(Z75:Z77) -> -4.8 | AZ79: 23.04 | BA79: =AZ79/S57 -> 7.68
O80: Appariser C | P80: 1 | Q80: 0.04 | R80: -1.38 | S80: 0.88 | T80: 0.14 | U80: -1.46 | V80: -0.29 | W80: 0.02 | X80: -0.46 | Y80: 1.77 | Z80: -1.49 | AB80: -0.223 | AX80: x13. | AY80: =SUM(Q80:Q82) -> -0.22 | AZ80: 0.0484 | BA80: =AZ80/S57 -> 0.01613333333
P81: 2 | Q81: -0.11 | R81: -1.13 | S81: 1.09 | T81: 0.2 | U81: -1.07 | V81: -0.67 | W81: 0.01 | X81: -0.56 | Y81: 1.45 | Z81: -1.77 | AB81: -0.256 | AX81: x23. | AY81: =SUM(R80:R82) -> -3.47 | AZ81: 12.0409 | BA81: =AZ81/S57 -> 4.013633333
P82: 3 | Q82: -0.15 | R82: -0.96 | S82: 0.67 | T82: 0.11 | U82: -1.45 | V82: -0.49 | W82: 0.21 | X82: -0.49 | Y82: 1.87 | Z82: -2.16 | AB82: -0.284 | AX82: x33. | AY82: =SUM(S80:S82) -> 2.64 | AZ82: 6.9696 | BA82: =AZ82/S57 -> 2.3232
P83: Avg. | Q83: =IF(Q80<>"",SUM(Q80:Q82)/COUNT(Q80:Q82),"") -> -0.07333333333 | R83: -1.156666667 | S83: 0.88 | T83: 0.15 | U83: -1.326666667 | V83: -0.4833333333 | W83: 0.08 | X83: -0.5033333333 | Y83: 1.696666667 | Z83: -1.806666667 | AA83: xc= | AB83: =IF(Q83<>"",AVERAGE(Q83:Z83),0) -> -0.2543333333 | AX83: x43. | AY83: =SUM(T80:T82) -> 0.45 | AZ83: 0.2025 | BA83: =AZ83/S57 -> 0.0675
P84: R | Q84: =IF(Q80<>"",MAX(Q80:Q82)-MIN(Q80:Q82),"") -> 0.19 | R84: 0.42 | S84: 0.42 | T84: 0.09 | U84: 0.39 | V84: 0.38 | W84: 0.2 | X84: 0.1 | Y84: 0.42 | Z84: 0.67 | AA84: rc= | AB84: =IF(Q84<>"",AVERAGE(Q84:Z84),0) -> 0.328 | AX84: x53. | AY84: =SUM(U80:U82) -> -3.98 | AZ84: 15.8404 | BA84: =AZ84/S57 -> 5.280133333
O85: Part | AA85: X= | AB85: =IF(Q70<>"",AVERAGE(Q86:Z86),) -> 0.001444444444 | AX85: x63. | AY85: =SUM(V80:V82) -> -1.45 | AZ85: 2.1025 | BA85: =AZ85/S57 -> 0.7008333333
O86: Average | Q86: =IF(Q73<>"",SUM(Q73,Q78,Q83)/COUNT(Q73,Q78,Q83),"") -> 0.1688888889 | R86: -0.8511111111 | S86: 1.098888889 | T86: 0.3666666667 | U86: -1.064444444 | V86: -0.1855555556 | W86: 0.4544444444 | X86: -0.3422222222 | Y86: 1.94 | Z86: -1.571111111 | AA86: Rp= | AB86: =IF(Q70<>"",MAX(Q86:Z86)-MIN(Q86:Z86),0) -> 3.511111111 | AX86: x73. | AY86: =SUM(W80:W82) -> 0.24 | AZ86: 0.0576 | BA86: =AZ86/S57 -> 0.0192
AA87: R bb | AB87: =IFERROR((AB74+AB79+AB84)/S61,"") -> 0.3416666667 | AX87: x83. | AY87: =SUM(X80:X82) -> -1.51 | AZ87: 2.2801 | BA87: =AZ87/S57 -> 0.7600333333
O88: Bias | P88: =+O70 -> Appariser A | R88: =+O75 -> Appariser B | T88: =+O80 -> Appariser C | W88: T: | X88: =IF(AND(S39<>"",AB85<>"",_xlfn.STDEV.S(Q70:Z72,Q75:Z77,Q80:Z82)<>""),(AB85-S39)*SQRT((S61*S59*S57))/(_xlfn.STDEV.S(Q70:Z72,Q75:Z77,Q80:Z82)),"") ->  | AA88: Xbd | AB88: =IF(S61=3,MAX(AB73,AB78,AB83)-MIN(AB73,AB78,AB83),ABS(AB73-AB78)) -> 0.4446666667 | AX88: x93. | AY88: =SUM(Y80:Y82) -> 5.09 | AZ88: 25.9081 | BA88: =AZ88/S57 -> 8.636033333
P89: =IF(AND(AB73<>"",S39<>""),AB73-S39,"") ->  | R89: =IF(AND(AB78<>"",S39<>""),AB78-S39,"") ->  | T89: =IF(AND(AB83<>"",S39<>""),AB83-S39,"") ->  | W89: P-value: | X89: =IF(AND(X88<>"",+(S61*S59*S57)>1),TDIST(ABS(X88),+(S61*S59*S57)-1,2),"") ->  | AA89: UCL R | AB89: =IFERROR(AB87*AS96,) -> 0.8815 | AT89: MSpool | AU89: =IF(T95<>"",(T95+T94)/(AS65-S59-S61+1),"") ->  | AX89: x103. | AY89: =SUM(Z80:Z82) -> -5.42 | AZ89: 29.3764 | BA89: =AZ89/S57 -> 9.792133333
O91: =IF(Q70<>"",IF(S59<5,"Less than 5 parts, the statistical uncertainty decreases with increased number of parts",""),"") -> 
O92: =IF(Q70<>"",IF(S57*S61<9,"Less than 3 appraisers and / or 3 repetitions, the statistical uncertainty decreases with increased number of trials",""),"") -> 
O94: Measurement Unit Analysis | V94: % GRR to Total variation | AC94: % GRR to Tollerance | AJ94: % GRR to Known sigma
AR95: Constants | AX95: total | AY95: tol | AZ95: sigma
O96: Repeatability - Equipment Variation (EV) | T96: =IFERROR(AB87*AS97,) -> 0.2018566667 | V96: % Equipment Variation (%EV) | AA96: =IFERROR(AX96,) -> 0.1751283868 | AC96: % Equipment Variation (%EV) | AH96: =IFERROR(AY96,) -> 0 | AJ96: % Equipment Variation (%EV) | AO96: =IFERROR(AZ96,) -> 0 | AR96: D4 | AS96: =IF(S57=3,2.58,3.27) -> 2.58 | AU96: =(AB88*AS97)^2 -> 0.06901605371 | AV96: =T96^2/(S57*S59) -> 0.001358203796 | AX96: =T96/T104 -> 0.1751283868 | AY96: =6*T96/(ABS(S53-S51)) ->  | AZ96: =(T96)/(S49) -> 
B97: MSA AVERAGE RANGE | D97: r | E97: r | F97: r | K97: average | L97: average | M97: average | AR97: K1 | AS97: =IF(S57=3,0.5908,0.8862) -> 0.5908 | AX97: =T98/T104 -> 0.2256693334 | AY97: =6*T98/(ABS(S53-S51)) ->  | AZ97: =(T98)/(S49) -> 
C98: UCL r | D98: ='16) MSA Average Range'!O70 -> Appariser A | E98: ='16) MSA Average Range'!O75 -> Appariser B | F98: ='16) MSA Average Range'!O80 -> Appariser C | H98: UCL a | I98: LCL a | J98: avarage | K98: ='16) MSA Average Range'!O70 -> Appariser A | L98: ='16) MSA Average Range'!O75 -> Appariser B | M98: ='16) MSA Average Range'!O80 -> Appariser C | O98: Reproducibility - Appraiser variation (AV) | T98: =IFERROR(SQRT(ABS(AU96-AV96)),) -> 0.260111226 | V98: % Appraiser Variation (%AV) | AA98: =IFERROR(AX97,) -> 0.2256693334 | AC98: % Appraiser Variation (%AV) | AH98: =IFERROR(AY97,) -> 0 | AJ98: % Appraiser Variation (%AV) | AO98: =IFERROR(AZ97,) -> 0 | AR98: K2 | AS98: =IF(S61=3,0.5231,0.7071) -> 0.5231 | AU98: =T96^2 -> 0.04074611388 | AV98: =T98^2 -> 0.06765784991
B99: 1 | C99: =+'16) MSA Average Range'!AB89 -> 0.8815 | D99: ='16) MSA Average Range'!Q74 -> 0.35 | E99: ='16) MSA Average Range'!Q79 -> 0.18 | F99: ='16) MSA Average Range'!Q84 -> 0.19 | G99: =B99 -> 1 | H99: ='16) MSA Average Range'!AB85+(3*_xlfn.STDEV.P('16) MSA Average Range'!AB74,'16) MSA Average Range'!AB84,'16) MSA Average Range'!AB79)) -> 0.4054271173 | I99: ='16) MSA Average Range'!AB85-(3*_xlfn.STDEV.P('16) MSA Average Range'!AB74,'16) MSA Average Range'!AB84,'16) MSA Average Range'!AB79)) -> -0.4025382285 | J99: =AVERAGE('16) MSA Average Range'!Q86:Z86) -> 0.001444444444 | K99: ='16) MSA Average Range'!Q73 -> 0.4466666667 | L99: ='16) MSA Average Range'!Q78 -> 0.1333333333 | M99: ='16) MSA Average Range'!Q83 -> -0.07333333333 | AR99: K3 | AS99: =IF(S59=10,0.3146,IF(S59=9,0.3249,IF(S59=8,0.3375,IF(S59=7,0.3534,IF(S59=6,0.3742,IF(S59=5,0.403,0.4467)))))) -> 0.3146 | AX99: =T100/T104 -> 0.2856511858 | AY99: =6*T100/(ABS(S53-S51)) ->  | AZ99: =(T100)/(S49) -> 
B100: 2 | C100: =+'16) MSA Average Range'!AB89 -> 0.8815 | D100: ='16) MSA Average Range'!R74 -> 0.12 | E100: ='16) MSA Average Range'!R79 -> 0.75 | F100: ='16) MSA Average Range'!R84 -> 0.42 | G100: 2 | H100: ='16) MSA Average Range'!AB85+(3*_xlfn.STDEV.P('16) MSA Average Range'!AB74,'16) MSA Average Range'!AB84,'16) MSA Average Range'!AB79)) -> 0.4054271173 | I100: ='16) MSA Average Range'!AB85-(3*_xlfn.STDEV.P('16) MSA Average Range'!AB74,'16) MSA Average Range'!AB84,'16) MSA Average Range'!AB79)) -> -0.4025382285 | J100: =AVERAGE('16) MSA Average Range'!Q86:Z86) -> 0.001444444444 | K100: ='16) MSA Average Range'!R73 -> -0.6066666667 | L100: ='16) MSA Average Range'!R78 -> -0.79 | M100: ='16) MSA Average Range'!R83 -> -1.156666667 | O100: Gage R & R | T100: =SQRT(ABS(AU98+AV98)) -> 0.3292475722 | V100: % Gage R & R Variation (%GRR) | AA100: =IFERROR(AX99,) -> 0.2856511858 | AC100: % Gage R & R Variation (%GRR) | AH100: =IFERROR(AY99,) -> 0 | AJ100: % Gage R & R Variation (%GRR) | AO100: =IFERROR(AZ99,) -> 0 | AR100: K3 | AS100: =IF(S59=10,0.3146,IF(S59=9,0.3249,IF(S59=8,0.3375,IF(S59=7,0.3534,IF(S59=6,0.3742,IF(S59=5,0.403,0.4467)))))) -> 0.3146 | AX100: =T102/T104 -> 0.958333658 | AY100: =6*T102/(ABS(S53-S51)) ->  | AZ100: =(T102)/(S49) -> 
B101: 3 | C101: =+'16) MSA Average Range'!AB89 -> 0.8815 | D101: ='16) MSA Average Range'!S74 -> 0.17 | E101: ='16) MSA Average Range'!S79 -> 0.4 | F101: ='16) MSA Average Range'!S84 -> 0.42 | G101: 3 | H101: ='16) MSA Average Range'!AB85+(3*_xlfn.STDEV.P('16) MSA Average Range'!AB74,'16) MSA Average Range'!AB84,'16) MSA Average Range'!AB79)) -> 0.4054271173 | I101: ='16) MSA Average Range'!AB85-(3*_xlfn.STDEV.P('16) MSA Average Range'!AB74,'16) MSA Average Range'!AB84,'16) MSA Average Range'!AB79)) -> -0.4025382285 | J101: =AVERAGE('16) MSA Average Range'!Q86:Z86) -> 0.001444444444 | K101: ='16) MSA Average Range'!S73 -> 1.26 | L101: ='16) MSA Average Range'!S78 -> 1.156666667 | M101: ='16) MSA Average Range'!S83 -> 0.88 | AU101: =T100^2 -> 0.1084039638 | AV101: =T102^2 -> 1.220131341 | AX101: =T102/T100 -> 3.354908734
B102: 4 | C102: =+'16) MSA Average Range'!AB89 -> 0.8815 | D102: ='16) MSA Average Range'!T74 -> 0.17 | E102: ='16) MSA Average Range'!T79 -> 1.02 | F102: ='16) MSA Average Range'!T84 -> 0.09 | G102: 4 | H102: ='16) MSA Average Range'!AB85+(3*_xlfn.STDEV.P('16) MSA Average Range'!AB74,'16) MSA Average Range'!AB84,'16) MSA Average Range'!AB79)) -> 0.4054271173 | I102: ='16) MSA Average Range'!AB85-(3*_xlfn.STDEV.P('16) MSA Average Range'!AB74,'16) MSA Average Range'!AB84,'16) MSA Average Range'!AB79)) -> -0.4025382285 | J102: =AVERAGE('16) MSA Average Range'!Q86:Z86) -> 0.001444444444 | K102: ='16) MSA Average Range'!T73 -> 0.5366666667 | L102: ='16) MSA Average Range'!T78 -> 0.4133333333 | M102: ='16) MSA Average Range'!T83 -> 0.15 | O102: Part Variation (PV) | T102: =IFERROR(AB86*AS99,) -> 1.104595556 | V102: % Part Variation (% PV) | AA102: =IFERROR(AX100,) -> 0.958333658 | AC102: % Part Variation (% PV) | AH102: =IFERROR(AY100,) -> 0 | AJ102: % Part Variation (% PV) | AO102: =IFERROR(AZ100,) -> 0
B103: 5 | C103: =+'16) MSA Average Range'!AB89 -> 0.8815 | D103: ='16) MSA Average Range'!U74 -> 0.12 | E103: ='16) MSA Average Range'!U79 -> 0.72 | F103: ='16) MSA Average Range'!U84 -> 0.39 | G103: 5 | H103: ='16) MSA Average Range'!AB85+(3*_xlfn.STDEV.P('16) MSA Average Range'!AB74,'16) MSA Average Range'!AB84,'16) MSA Average Range'!AB79)) -> 0.4054271173 | I103: ='16) MSA Average Range'!AB85-(3*_xlfn.STDEV.P('16) MSA Average Range'!AB74,'16) MSA Average Range'!AB84,'16) MSA Average Range'!AB79)) -> -0.4025382285 | J103: =AVERAGE('16) MSA Average Range'!Q86:Z86) -> 0.001444444444 | K103: ='16) MSA Average Range'!U73 -> -0.8533333333 | L103: ='16) MSA Average Range'!U78 -> -1.013333333 | M103: ='16) MSA Average Range'!U83 -> -1.326666667
B104: 6 | C104: =+'16) MSA Average Range'!AB89 -> 0.8815 | D104: ='16) MSA Average Range'!V74 -> 0.23 | E104: ='16) MSA Average Range'!V79 -> 0.42 | F104: ='16) MSA Average Range'!V84 -> 0.38 | G104: 6 | H104: ='16) MSA Average Range'!AB85+(3*_xlfn.STDEV.P('16) MSA Average Range'!AB74,'16) MSA Average Range'!AB84,'16) MSA Average Range'!AB79)) -> 0.4054271173 | I104: ='16) MSA Average Range'!AB85-(3*_xlfn.STDEV.P('16) MSA Average Range'!AB74,'16) MSA Average Range'!AB84,'16) MSA Average Range'!AB79)) -> -0.4025382285 | J104: =AVERAGE('16) MSA Average Range'!Q86:Z86) -> 0.001444444444 | K104: ='16) MSA Average Range'!V73 -> -0.1 | L104: ='16) MSA Average Range'!V78 -> 0.02666666667 | M104: ='16) MSA Average Range'!V83 -> -0.4833333333 | O104: Total Variation (TV) | T104: =SQRT(ABS(AU101+AV101)) -> 1.152621059 | V104: Number of Distinct Characteristics | AA104: =IFERROR(1.41*AX101,) -> 4.730421315 | AC104: Number of Distinct Characteristics | AH104: =IFERROR(1.41*AX101,) -> 4.730421315 | AJ104: Number of Distinct Characteristics | AO104: =IFERROR(1.41*AX101,) -> 4.730421315
B105: 7 | C105: =+'16) MSA Average Range'!AB89 -> 0.8815 | D105: ='16) MSA Average Range'!W74 -> 0.16 | E105: ='16) MSA Average Range'!W79 -> 0.36 | F105: ='16) MSA Average Range'!W84 -> 0.2 | G105: 7 | H105: ='16) MSA Average Range'!AB85+(3*_xlfn.STDEV.P('16) MSA Average Range'!AB74,'16) MSA Average Range'!AB84,'16) MSA Average Range'!AB79)) -> 0.4054271173 | I105: ='16) MSA Average Range'!AB85-(3*_xlfn.STDEV.P('16) MSA Average Range'!AB74,'16) MSA Average Range'!AB84,'16) MSA Average Range'!AB79)) -> -0.4025382285 | J105: =AVERAGE('16) MSA Average Range'!Q86:Z86) -> 0.001444444444 | K105: ='16) MSA Average Range'!W73 -> 0.6666666667 | L105: ='16) MSA Average Range'!W78 -> 0.6166666667 | M105: ='16) MSA Average Range'!W83 -> 0.08
B106: 8 | C106: =+'16) MSA Average Range'!AB89 -> 0.8815 | D106: ='16) MSA Average Range'!X74 -> 0.14 | E106: ='16) MSA Average Range'!X79 -> 0.71 | F106: ='16) MSA Average Range'!X84 -> 0.1 | G106: 8 | H106: ='16) MSA Average Range'!AB85+(3*_xlfn.STDEV.P('16) MSA Average Range'!AB74,'16) MSA Average Range'!AB84,'16) MSA Average Range'!AB79)) -> 0.4054271173 | I106: ='16) MSA Average Range'!AB85-(3*_xlfn.STDEV.P('16) MSA Average Range'!AB74,'16) MSA Average Range'!AB84,'16) MSA Average Range'!AB79)) -> -0.4025382285 | J106: =AVERAGE('16) MSA Average Range'!Q86:Z86) -> 0.001444444444 | K106: ='16) MSA Average Range'!X73 -> -0.2266666667 | L106: ='16) MSA Average Range'!X78 -> -0.2966666667 | M106: ='16) MSA Average Range'!X83 -> -0.5033333333
B107: 9 | C107: =+'16) MSA Average Range'!AB89 -> 0.8815 | D107: ='16) MSA Average Range'!Y74 -> 0.27 | E107: ='16) MSA Average Range'!Y79 -> 0.39 | F107: ='16) MSA Average Range'!Y84 -> 0.42 | G107: 9 | H107: ='16) MSA Average Range'!AB85+(3*_xlfn.STDEV.P('16) MSA Average Range'!AB74,'16) MSA Average Range'!AB84,'16) MSA Average Range'!AB79)) -> 0.4054271173 | I107: ='16) MSA Average Range'!AB85-(3*_xlfn.STDEV.P('16) MSA Average Range'!AB74,'16) MSA Average Range'!AB84,'16) MSA Average Range'!AB79)) -> -0.4025382285 | J107: =AVERAGE('16) MSA Average Range'!Q86:Z86) -> 0.001444444444 | K107: ='16) MSA Average Range'!Y73 -> 2.086666667 | L107: ='16) MSA Average Range'!Y78 -> 2.036666667 | M107: ='16) MSA Average Range'!Y83 -> 1.696666667 | O107: RESULT | V107: =IF(AA100<>"",IF(AA100<0.1,"MSA OK",IF(AA100<0.3,"Gage may be OK","Gage needs improvement")),"") -> Gage may be OK | AC107: =IF(AH100<>"",IF(AH100<0.1,"MSA OK",IF(AH100<0.3,"Gage may be OK","Gage needs improvement")),"") -> MSA OK | AJ107: =IF(AO100<>"",IF(AO100<0.1,"MSA OK",IF(AO100<0.3,"Gage may be OK","Gage needs improvement")),"") -> MSA OK
B108: 10 | C108: =+'16) MSA Average Range'!AB89 -> 0.8815 | D108: ='16) MSA Average Range'!Z74 -> 0.11 | E108: ='16) MSA Average Range'!Z79 -> 0.18 | F108: ='16) MSA Average Range'!Z84 -> 0.67 | G108: 10 | H108: ='16) MSA Average Range'!AB85+(3*_xlfn.STDEV.P('16) MSA Average Range'!AB74,'16) MSA Average Range'!AB84,'16) MSA Average Range'!AB79)) -> 0.4054271173 | I108: ='16) MSA Average Range'!AB85-(3*_xlfn.STDEV.P('16) MSA Average Range'!AB74,'16) MSA Average Range'!AB84,'16) MSA Average Range'!AB79)) -> -0.4025382285 | J108: =AVERAGE('16) MSA Average Range'!Q86:Z86) -> 0.001444444444 | K108: ='16) MSA Average Range'!Z73 -> -1.306666667 | L108: ='16) MSA Average Range'!Z78 -> -1.6 | M108: ='16) MSA Average Range'!Z83 -> -1.806666667
